Workbook

Sheet Portada

Sheet Intro
B4: Agentes
B5: Promotor
B6: Proyectistas, Constructor y otros Agentes
B11: Emplazamiento de la obra
B12: Denominación de la obra
B13: Dirección
B14: Municipio
B15: Territorio Histórico | C15: Bizkaia
B16: Coordenadas UTM
B17: Superficie parcela [m2]
B18: Superficie construida edificio [m2]
B19: Superficie construida urbanización [m2]
B20: Tipo de obra | F20: Araba | G20: Obra nueva | H20: Vivienda | I20: Edificación | J20: Proyecto
B21: Tipo de actuación | C21: Rehabilitación | F21: Bizkaia | G21: Rehabilitación | H21: Administrativo | I21: Urbanización | J21: Obra terminada
B22: Uso | C22: Vivienda | F22: Gipuzkoa | H22: Comercial | I22: Edificación y Urbanización
B23: Alcance | C23: Edificación | F23: Otro | H23: Industrial
B24: Fase | C24: Proyecto
B25: Calculos realizados por
B26: Nombre
B27: Cargo
B28: Fecha

Sheet entrada datos Edificación
A1: Valor:
B2: fila empieza | C2: Fila termina | D2: Lista asociada | E2: Para poner en la lista | G2: ACONDICIONAMIENTO Y CIMENTACION | I2: m3 | J2: o | K2: Kg | L2: d | M2: kg | N2: Material seleccionado | O2: % reciclado | R2: Material Reciclado [Kg] | S2: Material no Reciclado [Kg] | U2: Material Reciclado [%]
A3: =CONCATENATE("CALCULO_EDIF!","C",C3,":","D",D3) -> CALCULO_EDIF!C24:D1 | B3: =IF(D3=1,1,(D3*25-1)) -> 1 | C3: =IF(D3=1,24,B3+24) -> 24 | D3: 1 | E3: =CONCATENATE("CALCULO_EDIF!","C",B3,":","C",C3) -> CALCULO_EDIF!C1:C24 | G3: CIMENTACIONES | H3: hormigón zapatas y pilotes | I3: 50 | L3: 2500 | M3: =IF(AND(ISBLANK(I3)*ISBLANK(K3)),"-",IF(AND(NOT(ISBLANK(I3))*NOT(ISBLANK(K3))),"Error",IF(ISBLANK(I3),K3,I3*L3))) -> 125000 | N3: Cemento CEM I-Cementos Lemona, S.A. | O3: =IF(N3="Otro",$A$1,VLOOKUP(N3, INDIRECT(A3),2,FALSE)) -> 0.03 | P3: 0.4 | R3: =IF(O3="Valor:",M3*P3,M3*O3) -> 3750 | S3: =M3-R3 -> 121250 | U3: =SUM(R3:R5)/SUM(M3:M5) -> 0.2332869947
A4: =CONCATENATE("CALCULO_EDIF!","C",C4,":","D",D4) -> CALCULO_EDIF!C49:D2 | B4: =IF(D4=1,1,(D4-1)*25) -> 25 | C4: =IF(D4=1,24,B4+24) -> 49 | D4: 2 | E4: =CONCATENATE("CALCULO_EDIF!","C",B4,":","C",C4) -> CALCULO_EDIF!C25:C49 | H4: hormigón losas y soleras | K4: 10 | L4: 2500 | M4: =IF(AND(ISBLANK(I4)*ISBLANK(K4)),"-",IF(AND(NOT(ISBLANK(I4))*NOT(ISBLANK(K4))),"Error",IF(ISBLANK(I4),K4,I4*L4))) -> 10 | N4: Cemento CEM I-Cementos Lemona, S.A. | O4: =IF(N4="Otro",$A$1,VLOOKUP(N4, INDIRECT(A4),2,FALSE)) -> 0.03 | P4: 0.4 | R4: =IF(O4="Valor:",M4*P4,M4*O4) -> 0.3 | S4: =M4-R4 -> 9.7
A5: CALCULO_EDIF!C74:D3 | B5: =IF(D5=1,1,(D5-1)*25) -> 50 | C5: 74 | D5: 3 | E5: CALCULO_EDIF!C50:C74 | H5: acero armaduras | I5: 5 | L5: 7800 | M5: =IF(AND(ISBLANK(I5)*ISBLANK(K5)),"-",IF(AND(NOT(ISBLANK(I5))*NOT(ISBLANK(K5))),"Error",IF(ISBLANK(I5),K5,I5*L5))) -> 39000 | N5: Barras Corrugadas- Arcelor Mittal | O5: =IF(N5="Otro",$A$1,VLOOKUP(N5, INDIRECT(A5),2,FALSE)) -> 0.8849 | P5: 0.4 | R5: =IF(O5="Valor:",M5*P5,M5*O5) -> 34511.1 | S5: =M5-R5 -> 4488.9
A7: CALCULO_EDIF!C99:D4 | B7: 75 | C7: 99 | D7: 4 | E7: =CONCATENATE("CALCULO_EDIF!","C",B7,":","C",C7) -> CALCULO_EDIF!C75:C99 | G7: ACONDICIONAMIENTO DEL TERRENO | H7: material de explanadas, terraplenes o afines | K7: 20 | L7: 2050 | M7: =IF(AND(ISBLANK(I7)*ISBLANK(K7)),"-",IF(AND(NOT(ISBLANK(I7))*NOT(ISBLANK(K7))),"Error",IF(ISBLANK(I7),K7,I7*L7))) -> 20 | N7: material n02 | O7: =IF(N7="Otro",$A$1,VLOOKUP(N7, INDIRECT(A7),2,FALSE)) -> 0.1 | P7: 0.4 | R7: =IF(O7="Valor:",M7*P7,M7*O7) -> 2 | S7: =M7-R7 -> 18 | U7: =SUM(R7:R9)/SUM(M7:M9) -> 0.2851503759
A8: CALCULO_EDIF!C124:D5 | B8: =IF(D8=1,1,(D8-1)*25) -> 100 | C8: 124 | D8: 5 | E8: =CONCATENATE("CALCULO_EDIF!","C",B8,":","C",C8) -> CALCULO_EDIF!C100:C124 | H8: rellenos | I8: 3 | L8: 1600 | M8: =IF(AND(ISBLANK(I8)*ISBLANK(K8)),"-",IF(AND(NOT(ISBLANK(I8))*NOT(ISBLANK(K8))),"Error",IF(ISBLANK(I8),K8,I8*L8))) -> 4800 | N8: Otro | O8: =IF(N8="Otro",$A$1,VLOOKUP(N8, INDIRECT(A8),2,FALSE)) -> Valor: | P8: 0.3 | R8: =IF(O8="Valor:",M8*P8,M8*O8) -> 1440 | S8: =M8-R8 -> 3360
A9: CALCULO_EDIF!C149:D6 | B9: 125 | C9: 149 | D9: 6 | E9: CALCULO_EDIF!C125:C149 | H9: zahorras | K9: 500 | L9: 2200 | M9: =IF(AND(ISBLANK(I9)*ISBLANK(K9)),"-",IF(AND(NOT(ISBLANK(I9))*NOT(ISBLANK(K9))),"Error",IF(ISBLANK(I9),K9,I9*L9))) -> 500 | N9: material n03 | O9: =IF(N9="Otro",$A$1,VLOOKUP(N9, INDIRECT(A9),2,FALSE)) -> 0.15 | P9: 0.4 | R9: =IF(O9="Valor:",M9*P9,M9*O9) -> 75 | S9: =M9-R9 -> 425
R10: =SUM(R3:R9) -> 39778.4 | S10: =SUM(S3:S9) -> 129551.6 | U10: =R10/(R10+S10) -> 0.2349164354
G12: ESTRUCTURA | I12: m3 | L12: d | M12: kg | O12: % reciclado | R12: Material Reciclado [Kg] | S12: Material no Reciclado [Kg] | U12: Material Reciclado [%]
A13: CALCULO_EDIF!C174:D7 | B13: =IF(D13=1,1,(D13-1)*25) -> 150 | C13: 174 | D13: 7 | E13: =CONCATENATE("CALCULO_EDIF!","C",B13,":","C",C13) -> CALCULO_EDIF!C150:C174 | G13: ACERO | H13: pilares, vigas y viguetas | I13: 15 | L13: 7800 | M13: =IF(AND(ISBLANK(I13)*ISBLANK(K13)),"-",IF(AND(NOT(ISBLANK(I13))*NOT(ISBLANK(K13))),"Error",IF(ISBLANK(I13),K13,I13*L13))) -> 117000 | N13: Barras y perfiles-ArcelorMittal | O13: =IF(N13="Otro",$A$1,VLOOKUP(N13, INDIRECT(A13),2,FALSE)) -> 0.8898 | P13: 0.4 | R13: =IF(O13="Valor:",M13*P13,M13*O13) -> 104106.6 | S13: =M13-R13 -> 12893.4 | U13: =SUM(R13:R14)/SUM(M13:M14) -> 0.8896735601
A14: CALCULO_EDIF!C199:D8 | B14: =IF(D14=1,1,(D14-1)*25) -> 175 | C14: 199 | D14: 8 | E14: CALCULO_EDIF!C175:C199 | H14: chapa metálica | K14: 20 | L14: 7800 | M14: =IF(AND(ISBLANK(I14)*ISBLANK(K14)),"-",IF(AND(NOT(ISBLANK(I14))*NOT(ISBLANK(K14))),"Error",IF(ISBLANK(I14),K14,I14*L14))) -> 20 | N14: material n03 | O14: =IF(N14="Otro",$A$1,VLOOKUP(N14, INDIRECT(A14),2,FALSE)) -> 0.15 | P14: 0.4 | R14: =IF(O14="Valor:",M14*P14,M14*O14) -> 3 | S14: =M14-R14 -> 17
A16: CALCULO_EDIF!C224:D9 | B16: 200 | C16: 224 | D16: 9 | E16: CALCULO_EDIF!C200:C224 | G16: HORMIGON | H16: hormigón vigas y pilares | I16: 2 | L16: 2500 | M16: =IF(AND(ISBLANK(I16)*ISBLANK(K16)),"-",IF(AND(NOT(ISBLANK(I16))*NOT(ISBLANK(K16))),"Error",IF(ISBLANK(I16),K16,I16*L16))) -> 5000 | N16: material n06 | O16: =IF(N16="Otro",$A$1,VLOOKUP(N16, INDIRECT(A16),2,FALSE)) -> 0.3 | P16: 0.4 | R16: =IF(O16="Valor:",M16*P16,M16*O16) -> 1500 | S16: =M16-R16 -> 3500 | U16: =SUM(R16:R20)/SUM(M16:M20) -> 0.3019445494
A17: CALCULO_EDIF!C249:D10 | B17: 225 | C17: 249 | D17: 10 | E17: CALCULO_EDIF!C225:C249 | H17: hormigón losas y forjados | K17: 44 | L17: 2500 | M17: =IF(AND(ISBLANK(I17)*ISBLANK(K17)),"-",IF(AND(NOT(ISBLANK(I17))*NOT(ISBLANK(K17))),"Error",IF(ISBLANK(I17),K17,I17*L17))) -> 44 | N17: material n06 | O17: =IF(N17="Otro",$A$1,VLOOKUP(N17, INDIRECT(A17),2,FALSE)) -> 0.3 | P17: 0.4 | R17: =IF(O17="Valor:",M17*P17,M17*O17) -> 13.2 | S17: =M17-R17 -> 30.8
A18: =CONCATENATE("CALCULO_EDIF!","C",C18,":","D",D18) -> CALCULO_EDIF!C274:D11 | B18: =IF(D18=1,1,(D18-1)*25) -> 250 | C18: =IF(D18=1,24,B18+24) -> 274 | D18: 11 | E18: =CONCATENATE("CALCULO_EDIF!","C",B18,":","C",C18) -> CALCULO_EDIF!C250:C274 | H18: soleras | K18: 44 | L18: 2500 | M18: =IF(AND(ISBLANK(I18)*ISBLANK(K18)),"-",IF(AND(NOT(ISBLANK(I18))*NOT(ISBLANK(K18))),"Error",IF(ISBLANK(I18),K18,I18*L18))) -> 44 | N18: material n06 | O18: =IF(N18="Otro",$A$1,VLOOKUP(N18, INDIRECT(A18),2,FALSE)) -> 0.3 | P18: 0.4 | R18: =IF(O18="Valor:",M18*P18,M18*O18) -> 13.2 | S18: =M18-R18 -> 30.8
A19: CALCULO_EDIF!C299:D12 | B19: 275 | C19: 299 | D19: 12 | E19: CALCULO_EDIF!C275:C299 | H19: acero armaduras | K19: 57 | L19: 7800 | M19: =IF(AND(ISBLANK(I19)*ISBLANK(K19)),"-",IF(AND(NOT(ISBLANK(I19))*NOT(ISBLANK(K19))),"Error",IF(ISBLANK(I19),K19,I19*L19))) -> 57 | N19: Barras Corrugadas- Arcelor Mittal | O19: =IF(N19="Otro",$A$1,VLOOKUP(N19, INDIRECT(A19),2,FALSE)) -> 0.8849 | P19: 0.4 | R19: =IF(O19="Valor:",M19*P19,M19*O19) -> 50.4393 | S19: =M19-R19 -> 6.5607
A20: CALCULO_EDIF!C324:D13 | B20: 300 | C20: 324 | D20: 13 | E20: CALCULO_EDIF!C300:C324 | H20: viguetas prefabricadas de hormigón | I20: 5 | L20: 2400 | M20: =IF(AND(ISBLANK(I20)*ISBLANK(K20)),"-",IF(AND(NOT(ISBLANK(I20))*NOT(ISBLANK(K20))),"Error",IF(ISBLANK(I20),K20,I20*L20))) -> 12000 | N20: material n06 | O20: =IF(N20="Otro",$A$1,VLOOKUP(N20, INDIRECT(A20),2,FALSE)) -> 0.3 | P20: 0.4 | R20: =IF(O20="Valor:",M20*P20,M20*O20) -> 3600 | S20: =M20-R20 -> 8400
A22: CALCULO_EDIF!C349:D14 | B22: 325 | C22: 349 | D22: 14 | E22: CALCULO_EDIF!C325:C349 | G22: MADERA | H22: madera | K22: 5 | L22: 750 | M22: =IF(AND(ISBLANK(I22)*ISBLANK(K22)),"-",IF(AND(NOT(ISBLANK(I22))*NOT(ISBLANK(K22))),"Error",IF(ISBLANK(I22),K22,I22*L22))) -> 5 | N22: material n09 | O22: =IF(N22="Otro",$A$1,VLOOKUP(N22, INDIRECT(A22),2,FALSE)) -> 0.45 | P22: 0.4 | R22: =IF(O22="Valor:",M22*P22,M22*O22) -> 2.25 | S22: =M22-R22 -> 2.75 | U22: =R22/(R22+S22) -> 0.45
A24: CALCULO_EDIF!C374:D15 | B24: 350 | C24: 374 | D24: 15 | E24: CALCULO_EDIF!C350:C374 | G24: MUROS DE FABRICA | H24: fábrica | K24: 8 | L24: 2300 | M24: =IF(AND(ISBLANK(I24)*ISBLANK(K24)),"-",IF(AND(NOT(ISBLANK(I24))*NOT(ISBLANK(K24))),"Error",IF(ISBLANK(I24),K24,I24*L24))) -> 8 | N24: material n06 | O24: =IF(N24="Otro",$A$1,VLOOKUP(N24, INDIRECT(A24),2,FALSE)) -> 0.3 | P24: 0.4 | R24: =IF(O24="Valor:",M24*P24,M24*O24) -> 2.4 | S24: =M24-R24 -> 5.6 | U24: 0.3
R25: =SUM(R13:R24) -> 109291.0893 | S25: =SUM(S13:T24) -> 24886.9107 | U25: =R25/(R25+S25) -> 0.8145231655
G27: FACHADAS | I27: m3 | L27: d | M27: kg | O27: % reciclado | R27: Material Reciclado [Kg] | S27: Material no Reciclado [Kg] | U27: Material Reciclado [%]
A28: CALCULO_EDIF!C399:D16 | B28: 375 | C28: 399 | D28: 16 | E28: CALCULO_EDIF!C375:C399 | G28: HOJA PRINCIPAL | H28: ladrillo hueco doble | I28: 14 | L28: 770 | M28: =IF(AND(ISBLANK(I28)*ISBLANK(K28)),"-",IF(AND(NOT(ISBLANK(I28))*NOT(ISBLANK(K28))),"Error",IF(ISBLANK(I28),K28,I28*L28))) -> 10780 | N28: material n03 | O28: =IF(N28="Otro",$A$1,VLOOKUP(N28, INDIRECT(A28),2,FALSE)) -> 0.15 | P28: 0.4 | R28: =IF(O28="Valor:",M28*P28,M28*O28) -> 1617 | S28: =M28-R28 -> 9163 | U28: =SUM(R28:R36)/SUM(M28:M36) -> 0.2904006163
A29: CALCULO_EDIF!C424:D17 | B29: 400 | C29: 424 | D29: 17 | E29: CALCULO_EDIF!C400:C424 | H29: ladrillo macizo | K29: 45 | L29: 2300 | M29: 45 | N29: material n06 | O29: 0.3 | P29: 0.4 | R29: 13.5 | S29: 31.5
A30: CALCULO_EDIF!C449:D18 | B30: 425 | C30: 449 | D30: 18 | E30: CALCULO_EDIF!C425:C449 | H30: bloques de hormigón | K30: 16 | L30: 1230 | M30: 16 | N30: material n07 | O30: 0.35 | P30: 0.4 | R30: 5.6 | S30: 10.4
A31: CALCULO_EDIF!C474:D19 | B31: 450 | C31: 474 | D31: 19 | E31: CALCULO_EDIF!C450:C474 | H31: bloques cerámicos | I31: 20 | L31: 910 | M31: 18200 | N31: material n03 | O31: 0.15 | P31: 0.4 | R31: 2730 | S31: 15470
A32: CALCULO_EDIF!C499:D20 | B32: 475 | C32: 499 | D32: 20 | E32: CALCULO_EDIF!C475:C499 | H32: bloque termoarcilla | I32: 10 | L32: 770 | M32: 7700 | N32: material n18 | O32: 0.9 | P32: 0.36 | R32: 6930 | S32: 770
A33: CALCULO_EDIF!C524:D21 | B33: 500 | C33: 524 | D33: 21 | E33: CALCULO_EDIF!C500:C524 | H33: subestructura acero | K33: 45 | L33: 7800 | M33: 45 | N33: material n05 | O33: 0.25 | P33: 0.4 | R33: 11.25 | S33: 33.75
A34: CALCULO_EDIF!C549:D22 | B34: 525 | C34: 549 | D34: 22 | E34: CALCULO_EDIF!C525:C549 | H34: panel sándwich | I34: 3 | L34: 175 | M34: 525 | N34: material n04 | O34: 0.2 | P34: 0.4 | R34: 105 | S34: 420
A35: CALCULO_EDIF!C574:D23 | B35: 550 | C35: 574 | D35: 23 | E35: CALCULO_EDIF!C550:C574 | H35: subestructura Acero | K35: 74 | L35: 7800 | M35: 74 | N35: material n06 | O35: 0.3 | P35: 0.4 | R35: 22.2 | S35: 51.8
A36: CALCULO_EDIF!C599:D24 | B36: =IF(D36=1,1,(D36-1)*25) -> 575 | C36: =IF(D36=1,24,B36+24) -> 599 | D36: 24 | E36: CALCULO_EDIF!C575:C599 | H36: panel hormigón | I36: 2 | L36: 2400 | M36: 4800 | N36: PowerPanel HD Building Board-FERMACELL | O36: 0.17 | P36: 0.4 | R36: 816 | S36: 3984
A38: CALCULO_EDIF!C624:D25 | B38: 600 | C38: 624 | D38: 25 | E38: CALCULO_EDIF!C600:C624 | G38: REVESTIMIENTO EXTERIOR | H38: ladrillo caravista | K38: 75 | L38: 2300 | M38: =IF(AND(ISBLANK(I38)*ISBLANK(K38)),"-",IF(AND(NOT(ISBLANK(I38))*NOT(ISBLANK(K38))),"Error",IF(ISBLANK(I38),K38,I38*L38))) -> 75 | N38: Otro | O38: =IF(N38="Otro",$A$1,VLOOKUP(N38, INDIRECT(A38),2,FALSE)) -> Valor: | P38: 0.06 | R38: =IF(O38="Valor:",M38*P38,M38*O38) -> 4.5 | S38: =M38-R38 -> 70.5 | U38: =SUM(R38:R46)/SUM(M38:M46) -> 0.2396183838
A39: CALCULO_EDIF!C649:D26 | B39: 625 | C39: 649 | D39: 26 | E39: CALCULO_EDIF!C625:C649 | H39: aplacado piedra | I39: 14 | L39: 2250 | M39: 31500 | N39: material n05 | O39: 0.25 | P39: 0.4 | R39: 7875 | S39: 23625
A40: CALCULO_EDIF!C674:D27 | B40: 650 | C40: 674 | D40: 27 | E40: CALCULO_EDIF!C650:C674 | H40: hormigón polímero | K40: 36 | L40: 2400 | M40: 36 | N40: material n06 | O40: 0.3 | P40: 0.4 | R40: 10.8 | S40: 25.2
A41: CALCULO_EDIF!C699:D28 | B41: 675 | C41: 699 | D41: 28 | E41: CALCULO_EDIF!C675:C699 | H41: tableros fenólicos | K41: 74 | L41: 680 | M41: 74 | N41: material n05 | O41: 0.25 | P41: 0.4 | R41: 18.5 | S41: 55.5
A42: CALCULO_EDIF!C724:D29 | B42: 700 | C42: 724 | D42: 29 | E42: CALCULO_EDIF!C700:C724 | H42: revestimientos metálicos | K42: 35 | L42: 7200 | M42: 35 | N42: material n10 | O42: 0.5 | P42: 0.4 | R42: 17.5 | S42: 17.5
A43: CALCULO_EDIF!C749:D30 | B43: 725 | C43: 749 | D43: 30 | E43: CALCULO_EDIF!C725:C749 | H43: mortero monocapa | K43: 41 | L43: 1800 | M43: 41 | N43: material n04 | O43: 0.2 | P43: 0.4 | R43: 8.2 | S43: 32.8
A44: CALCULO_EDIF!C774:D31 | B44: 750 | C44: 774 | D44: 31 | E44: CALCULO_EDIF!C750:C774 | H44: paneles de madera | K44: 10 | L44: 680 | M44: 10 | N44: material n07 | O44: 0.35 | P44: 0.4 | R44: 3.5 | S44: 6.5
A45: CALCULO_EDIF!C799:D32 | B45: 775 | C45: 799 | D45: 32 | E45: CALCULO_EDIF!C775:C799 | H45: panel sándwich | I45: 5 | L45: 175 | M45: 875 | N45: material n05 | O45: 0.25 | P45: 0.4 | R45: 218.75 | S45: 656.25
A46: CALCULO_EDIF!C824:D33 | B46: 800 | C46: 824 | D46: 33 | E46: CALCULO_EDIF!C800:C824 | H46: panel hormigón | I46: 2 | L46: 2400 | M46: 4800 | N46: PowerPanel HD Building Board-FERMACELL | O46: 0.17 | P46: 0.4 | R46: 816 | S46: 3984
A48: CALCULO_EDIF!C849:D34 | B48: 825 | C48: 849 | D48: 34 | E48: CALCULO_EDIF!C825:C849 | G48: CARPINTERIA, VENTANAS | H48: carpintería metálico | K48: 74 | L48: 2700 | M48: =IF(AND(ISBLANK(I48)*ISBLANK(K48)),"-",IF(AND(NOT(ISBLANK(I48))*NOT(ISBLANK(K48))),"Error",IF(ISBLANK(I48),K48,I48*L48))) -> 74 | N48: material n08 | O48: =IF(N48="Otro",$A$1,VLOOKUP(N48, INDIRECT(A48),2,FALSE)) -> 0.4 | P48: 0.4 | R48: =IF(O48="Valor:",M48*P48,M48*O48) -> 29.6 | S48: =M48-R48 -> 44.4 | U48: =SUM(R48:R51)/SUM(M48:M51) -> 0.3153974122
A49: CALCULO_EDIF!C874:D35 | B49: 850 | C49: 874 | D49: 35 | E49: CALCULO_EDIF!C850:C874 | H49: carpintería sintético | K49: 75 | L49: 1390 | M49: =IF(AND(ISBLANK(I49)*ISBLANK(K49)),"-",IF(AND(NOT(ISBLANK(I49))*NOT(ISBLANK(K49))),"Error",IF(ISBLANK(I49),K49,I49*L49))) -> 75 | N49: material n05 | O49: =IF(N49="Otro",$A$1,VLOOKUP(N49, INDIRECT(A49),2,FALSE)) -> 0.25 | P49: 0.4 | R49: =IF(O49="Valor:",M49*P49,M49*O49) -> 18.75 | S49: =M49-R49 -> 56.25
A50: CALCULO_EDIF!C899:D36 | B50: 875 | C50: 899 | D50: 36 | E50: CALCULO_EDIF!C875:C899 | H50: carpintería madera | I50: 2 | L50: 700 | M50: =IF(AND(ISBLANK(I50)*ISBLANK(K50)),"-",IF(AND(NOT(ISBLANK(I50))*NOT(ISBLANK(K50))),"Error",IF(ISBLANK(I50),K50,I50*L50))) -> 1400 | N50: Otro | O50: =IF(N50="Otro",$A$1,VLOOKUP(N50, INDIRECT(A50),2,FALSE)) -> Valor: | P50: 0.32 | R50: =IF(O50="Valor:",M50*P50,M50*O50) -> 448 | S50: =M50-R50 -> 952
A51: CALCULO_EDIF!C924:D37 | B51: 900 | C51: 924 | D51: 37 | E51: CALCULO_EDIF!C900:C924 | H51: vidrio | K51: 74 | L51: 2500 | M51: =IF(AND(ISBLANK(I51)*ISBLANK(K51)),"-",IF(AND(NOT(ISBLANK(I51))*NOT(ISBLANK(K51))),"Error",IF(ISBLANK(I51),K51,I51*L51))) -> 74 | N51: Serie 100-Andersen Corporation | O51: =IF(N51="Otro",$A$1,VLOOKUP(N51, INDIRECT(A51),2,FALSE)) -> 0.21 | P51: 0.4 | R51: =IF(O51="Valor:",M51*P51,M51*O51) -> 15.54 | S51: =M51-R51 -> 58.46
A53: CALCULO_EDIF!C949:D38 | B53: 925 | C53: 949 | D53: 38 | E53: CALCULO_EDIF!C925:C949 | G53: CARPINTERIA. PUERTAS | H53: carpintería metálica | I53: 3 | L53: 7800 | M53: =IF(AND(ISBLANK(I53)*ISBLANK(K53)),"-",IF(AND(NOT(ISBLANK(I53))*NOT(ISBLANK(K53))),"Error",IF(ISBLANK(I53),K53,I53*L53))) -> 23400 | N53: Crawford OH1042P-ASSA ABLOY | O53: =IF(N53="Otro",$A$1,VLOOKUP(N53, INDIRECT(A53),2,FALSE)) -> 0.7759 | P53: 0.4 | R53: =IF(O53="Valor:",M53*P53,M53*O53) -> 18156.06 | S53: =M53-R53 -> 5243.94 | U53: =SUM(R53:R56)/SUM(M53:M56) -> 0.8207243101
A54: CALCULO_EDIF!C974:D39 | B54: 950 | C54: 974 | D54: 39 | E54: CALCULO_EDIF!C950:C974 | H54: carpintería sintético | K54: 50 | L54: 1390 | M54: =IF(AND(ISBLANK(I54)*ISBLANK(K54)),"-",IF(AND(NOT(ISBLANK(I54))*NOT(ISBLANK(K54))),"Error",IF(ISBLANK(I54),K54,I54*L54))) -> 50 | N54: material n19 | O54: =IF(N54="Otro",$A$1,VLOOKUP(N54, INDIRECT(A54),2,FALSE)) -> 0.95 | P54: 0.4 | R54: =IF(O54="Valor:",M54*P54,M54*O54) -> 47.5 | S54: =M54-R54 -> 2.5
A55: CALCULO_EDIF!C999:D40 | B55: 975 | C55: 999 | D55: 40 | E55: CALCULO_EDIF!C975:C999 | H55: carpintería madera | I55: 3 | L55: 700 | M55: =IF(AND(ISBLANK(I55)*ISBLANK(K55)),"-",IF(AND(NOT(ISBLANK(I55))*NOT(ISBLANK(K55))),"Error",IF(ISBLANK(I55),K55,I55*L55))) -> 2100 | N55: material n05 | O55: =IF(N55="Otro",$A$1,VLOOKUP(N55, INDIRECT(A55),2,FALSE)) -> 0.25 | P55: 0.4 | R55: =IF(O55="Valor:",M55*P55,M55*O55) -> 525 | S55: =M55-R55 -> 1575
A56: CALCULO_EDIF!C1024:D41 | B56: 1000 | C56: 1024 | D56: 41 | E56: CALCULO_EDIF!C1000:C1024 | H56: vidrio | I56: 5 | L56: 2500 | M56: =IF(AND(ISBLANK(I56)*ISBLANK(K56)),"-",IF(AND(NOT(ISBLANK(I56))*NOT(ISBLANK(K56))),"Error",IF(ISBLANK(I56),K56,I56*L56))) -> 12500 | N56: material n20 | O56: =IF(N56="Otro",$A$1,VLOOKUP(N56, INDIRECT(A56),2,FALSE)) -> 1 | P56: 0.4 | R56: =IF(O56="Valor:",M56*P56,M56*O56) -> 12500 | S56: =M56-R56 -> 0
R57: =SUM(R28:R56) -> 52963.75 | S57: =SUM(S28:T56) -> 66340.25 | U57: =R57/(R57+S57) -> 0.443939432
G59: CUBIERTAS | I59: m3 | L59: d | M59: kg | O59: % reciclado | R59: Material Reciclado [Kg] | S59: Material no Reciclado [Kg] | U59: Material Reciclado [%]
A60: CALCULO_EDIF!C1049:D42 | B60: 1025 | C60: 1049 | D60: 42 | E60: CALCULO_EDIF!C1025:C1049 | G60: ACABADOS | H60: panel sándwich | K60: 75 | L60: 175 | M60: =IF(AND(ISBLANK(I60)*ISBLANK(K60)),"-",IF(AND(NOT(ISBLANK(I60))*NOT(ISBLANK(K60))),"Error",IF(ISBLANK(I60),K60,I60*L60))) -> 75 | N60: material n20 | O60: =IF(N60="Otro",$A$1,VLOOKUP(N60, INDIRECT(A60),2,FALSE)) -> 1 | P60: 0.4 | R60: =IF(O60="Valor:",M60*P60,M60*O60) -> 75 | S60: =M60-R60 -> 0 | U60: =SUM(R60:R70)/SUM(M60:M70) -> 0.561277933
A61: CALCULO_EDIF!C1074:D43 | B61: 1050 | C61: 1074 | D61: 43 | E61: CALCULO_EDIF!C1050:C1074 | H61: cubierta decks | I61: 14 | L61: 175 | M61: 2450 | N61: material n19 | O61: 0.95 | P61: 0.4 | R61: 2327.5 | S61: 122.5
A62: CALCULO_EDIF!C1099:D44 | B62: 1075 | C62: 1099 | D62: 44 | E62: CALCULO_EDIF!C1075:C1099 | H62: revestimiento metálico (zinc, acero, cobre, etc.…) | K62: 36 | L62: 7200 | M62: 36 | N62: material n03 | O62: 0.15 | P62: 0.4 | R62: 5.4 | S62: 30.6
A63: CALCULO_EDIF!C1124:D45 | B63: 1100 | C63: 1124 | D63: 45 | E63: CALCULO_EDIF!C1100:C1124 | H63: pizarra | K63: 74 | L63: 2700 | M63: 74 | N63: material n06 | O63: 0.3 | P63: 0.4 | R63: 22.2 | S63: 51.8
A64: CALCULO_EDIF!C1149:D46 | B64: 1125 | C64: 1149 | D64: 46 | E64: CALCULO_EDIF!C1125:C1149 | H64: tejas cerámicas | K64: 35 | L64: 2300 | M64: 35 | N64: material n20 | O64: 1 | P64: 0.4 | R64: 35 | S64: 0
A65: CALCULO_EDIF!C1174:D47 | B65: 1150 | C65: 1174 | D65: 47 | E65: CALCULO_EDIF!C1150:C1174 | H65: tejas de hormigón | K65: 41 | L65: 2100 | M65: 41 | N65: material n03 | O65: 0.15 | P65: 0.4 | R65: 6.15 | S65: 34.85
A66: CALCULO_EDIF!C1199:D48 | B66: 1175 | C66: 1199 | D66: 48 | E66: CALCULO_EDIF!C1175:C1199 | H66: tejas asfálticas | K66: 10 | L66: 2100 | M66: 10 | N66: material n05 | O66: 0.25 | P66: 0.4 | R66: 2.5 | S66: 7.5
A67: CALCULO_EDIF!C1224:D49 | B67: 1200 | C67: 1224 | D67: 49 | E67: CALCULO_EDIF!C1200:C1224 | H67: grava | I67: 2 | L67: 1800 | M67: 3600 | N67: material n20 | O67: 1 | P67: 0.4 | R67: 3600 | S67: 0
A68: CALCULO_EDIF!C1249:D50 | B68: 1225 | C68: =IF(D68=1,24,B68+24) -> 1249 | D68: 50 | E68: CALCULO_EDIF!C1225:C1249 | H68: cubierta verde | I68: 5 | L68: 785 | M68: 3925 | N68: Otro | O68: Valor: | P68: 0.4 | R68: 1570 | S68: 2355
A69: =CONCATENATE("CALCULO_EDIF!","C",C69,":","D",D69) -> CALCULO_EDIF!C1274:D51 | B69: 1250 | C69: 1274 | D69: 51 | E69: CALCULO_EDIF!C1250:C1274 | H69: losa filtrante | I69: 1 | L69: 1470 | M69: 1470 | N69: material n10 | O69: 0.5 | P69: 0.4 | R69: 735 | S69: 735
A70: CALCULO_EDIF!C1299:D52 | B70: 1275 | C70: 1299 | D70: 52 | E70: CALCULO_EDIF!C1275:C1299 | H70: baldosa | I70: 3 | L70: 2300 | M70: 6900 | N70: material n06 | O70: 0.3 | P70: 0.4 | R70: 2070 | S70: 4830
A72: CALCULO_EDIF!C1324:D53 | B72: 1300 | C72: 1324 | D72: 53 | E72: CALCULO_EDIF!C1300:C1324 | G72: LUCERNARIOS | H72: carpintería metálica | K72: 36 | L72: 2700 | M72: =IF(AND(ISBLANK(I72)*ISBLANK(K72)),"-",IF(AND(NOT(ISBLANK(I72))*NOT(ISBLANK(K72))),"Error",IF(ISBLANK(I72),K72,I72*L72))) -> 36 | N72: material n19 | O72: =IF(N72="Otro",$A$1,VLOOKUP(N72, INDIRECT(A72),2,FALSE)) -> 0.95 | P72: 0.4 | R72: =IF(O72="Valor:",M72*P72,M72*O72) -> 34.2 | S72: =M72-R72 -> 1.8 | U72: =SUM(R72:R76)/SUM(M72:M76) -> 0.9114482502
A73: CALCULO_EDIF!C1349:D54 | B73: 1325 | C73: 1349 | D73: 54 | E73: CALCULO_EDIF!C1325:C1349 | H73: carpintería sintética | K73: 74 | L73: 1390 | M73: =IF(AND(ISBLANK(I73)*ISBLANK(K73)),"-",IF(AND(NOT(ISBLANK(I73))*NOT(ISBLANK(K73))),"Error",IF(ISBLANK(I73),K73,I73*L73))) -> 74 | N73: material n05 | O73: =IF(N73="Otro",$A$1,VLOOKUP(N73, INDIRECT(A73),2,FALSE)) -> 0.25 | P73: 0.4 | R73: =IF(O73="Valor:",M73*P73,M73*O73) -> 18.5 | S73: =M73-R73 -> 55.5
A74: CALCULO_EDIF!C1374:D55 | B74: 1350 | C74: 1374 | D74: 55 | E74: CALCULO_EDIF!C1350:C1374 | H74: madera | K74: 35 | L74: 700 | M74: =IF(AND(ISBLANK(I74)*ISBLANK(K74)),"-",IF(AND(NOT(ISBLANK(I74))*NOT(ISBLANK(K74))),"Error",IF(ISBLANK(I74),K74,I74*L74))) -> 35 | N74: material n07 | O74: =IF(N74="Otro",$A$1,VLOOKUP(N74, INDIRECT(A74),2,FALSE)) -> 0.35 | P74: 0.4 | R74: =IF(O74="Valor:",M74*P74,M74*O74) -> 12.25 | S74: =M74-R74 -> 22.75
A75: CALCULO_EDIF!C1399:D56 | B75: 1375 | C75: 1399 | D75: 56 | E75: CALCULO_EDIF!C1375:C1399 | H75: policarbonato | K75: 41 | L75: 1200 | M75: =IF(AND(ISBLANK(I75)*ISBLANK(K75)),"-",IF(AND(NOT(ISBLANK(I75))*NOT(ISBLANK(K75))),"Error",IF(ISBLANK(I75),K75,I75*L75))) -> 41 | N75: material n04 | O75: =IF(N75="Otro",$A$1,VLOOKUP(N75, INDIRECT(A75),2,FALSE)) -> 0.2 | P75: 0.4 | R75: =IF(O75="Valor:",M75*P75,M75*O75) -> 8.2 | S75: =M75-R75 -> 32.8
A76: CALCULO_EDIF!C1424:D57 | B76: 1400 | C76: 1424 | D76: 57 | E76: CALCULO_EDIF!C1400:C1424 | H76: vidrio | I76: 1 | L76: 2500 | M76: =IF(AND(ISBLANK(I76)*ISBLANK(K76)),"-",IF(AND(NOT(ISBLANK(I76))*NOT(ISBLANK(K76))),"Error",IF(ISBLANK(I76),K76,I76*L76))) -> 2500 | N76: material n19 | O76: =IF(N76="Otro",$A$1,VLOOKUP(N76, INDIRECT(A76),2,FALSE)) -> 0.95 | P76: 0.4 | R76: =IF(O76="Valor:",M76*P76,M76*O76) -> 2375 | S76: =M76-R76 -> 125
R77: =SUM(R60:R76) -> 12896.9 | S77: =SUM(S60:S76) -> 8405.1 | U77: =R77/(R77+S77) -> 0.6054314149
G79: AISLANTES E IMPERMEABILIZANTES | I79: m3 | L79: d | M79: kg | O79: % reciclado | R79: Material Reciclado [Kg] | S79: Material no Reciclado [Kg] | U79: Material Reciclado [%]
A80: CALCULO_EDIF!C1449:D58 | B80: =IF(D80=1,1,(D80-1)*25) -> 1425 | C80: 1449 | D80: 58 | E80: =CONCATENATE("CALCULO_EDIF!","C",B80,":","C",C80) -> CALCULO_EDIF!C1425:C1449 | G80: AISLAMIENTOS TERMICOS | H80: lana mineral | I80: 14 | L80: 100 | M80: =IF(AND(ISBLANK(I80)*ISBLANK(K80)),"-",IF(AND(NOT(ISBLANK(I80))*NOT(ISBLANK(K80))),"Error",IF(ISBLANK(I80),K80,I80*L80))) -> 1400 | N80: Lana de roca de baja densidad (entre 27 kg/m³ a 60 kg/m³ ) -ROCKWOOL | O80: =IF(N80="Otro",$A$1,VLOOKUP(N80, INDIRECT(A80),2,FALSE)) -> 0.344 | P80: 0.4 | R80: =IF(O80="Valor:",M80*P80,M80*O80) -> 481.6 | S80: =M80-R80 -> 918.4 | U80: =SUM(R80:R89)/SUM(M80:M89) -> 0.314916308
A81: CALCULO_EDIF!C1474:D59 | B81: 1450 | C81: 1474 | D81: 59 | E81: CALCULO_EDIF!C1450:C1474 | H81: lana de vidrio | K81: 36 | L81: 90 | M81: 36 | N81: Glass Mineral Wool 035 - 034 slabs with ECOSE-Knauf insulation | O81: 0.84 | P81: 0.4 | R81: 30.24 | S81: 5.76
A82: CALCULO_EDIF!C1499:D60 | B82: 1475 | C82: 1499 | D82: 60 | E82: CALCULO_EDIF!C1475:C1499 | H82: poliestireno expandido | K82: 74 | L82: 20 | M82: 74 | N82: material n02 | O82: 0.1 | P82: 0.4 | R82: 7.4 | S82: 66.6
A83: CALCULO_EDIF!C1524:D61 | B83: 1500 | C83: 1524 | D83: 61 | E83: CALCULO_EDIF!C1500:C1524 | H83: poliestireno extruido | K83: 35 | L83: 30 | M83: 35 | N83: material n04 | O83: 0.2 | P83: 0.4 | R83: 7 | S83: 28
A84: CALCULO_EDIF!C1549:D62 | B84: 1525 | C84: 1549 | D84: 62 | E84: CALCULO_EDIF!C1525:C1549 | H84: espuma poliuretano | K84: 41 | L84: 20 | M84: 41 | N84: material n05 | O84: 0.25 | P84: 0.4 | R84: 10.25 | S84: 30.75
A85: CALCULO_EDIF!C1574:D63 | B85: 1550 | C85: 1574 | D85: 63 | E85: CALCULO_EDIF!C1550:C1574 | H85: corcho | K85: 10 | L85: 120 | M85: 10 | N85: material n03 | O85: 0.15 | P85: 0.4 | R85: 1.5 | S85: 8.5
A86: CALCULO_EDIF!C1599:D64 | B86: 1575 | C86: 1599 | D86: 64 | E86: CALCULO_EDIF!C1575:C1599 | H86: fibra de madera | I86: 2 | L86: 50 | M86: 100 | N86: material n04 | O86: 0.2 | P86: 0.4 | R86: 20 | S86: 80
A87: CALCULO_EDIF!C1624:D65 | B87: 1600 | C87: 1624 | D87: 65 | E87: CALCULO_EDIF!C1600:C1624 | H87: celulosa | I87: 1 | L87: 45 | M87: 45 | N87: Biocell -Biohaus Goierri sl | O87: 0.9 | P87: 0.4 | R87: 40.5 | S87: 4.5
A88: CALCULO_EDIF!C1649:D66 | B88: 1625 | C88: 1649 | D88: 66 | E88: CALCULO_EDIF!C1625:C1649 | H88: vidrio celular | I88: 1 | L88: 150 | M88: 150 | N88: material n04 | O88: 0.2 | P88: 0.4 | R88: 30 | S88: 120
A89: CALCULO_EDIF!C1674:D67 | B89: 1650 | C89: 1674 | D89: 67 | E89: CALCULO_EDIF!C1650:C1674 | H89: otros | I89: 2 | L89: 100 | M89: 200 | N89: material n03 | O89: 0.15 | P89: 0.4 | R89: 30 | S89: 170
A91: CALCULO_EDIF!C1699:D68 | B91: 1675 | C91: 1699 | D91: 68 | E91: CALCULO_EDIF!C1675:C1699 | G91: IMPERMEABILIZANTES | H91: láminas sintéticas | K91: 45 | L91: 2000 | M91: =IF(AND(ISBLANK(I91)*ISBLANK(K91)),"-",IF(AND(NOT(ISBLANK(I91))*NOT(ISBLANK(K91))),"Error",IF(ISBLANK(I91),K91,I91*L91))) -> 45 | N91: material n04 | O91: =IF(N91="Otro",$A$1,VLOOKUP(N91, INDIRECT(A91),2,FALSE)) -> 0.2 | P91: 0.4 | R91: =IF(O91="Valor:",M91*P91,M91*O91) -> 9 | S91: =M91-R91 -> 36 | U91: =SUM(R91:R92)/SUM(M91:M92) -> 0.1485714286
A92: CALCULO_EDIF!C1724:D69 | B92: 1700 | C92: 1724 | D92: 69 | E92: CALCULO_EDIF!C1700:C1724 | H92: láminas asfálticas | K92: 60 | L92: 1100 | M92: =IF(AND(ISBLANK(I92)*ISBLANK(K92)),"-",IF(AND(NOT(ISBLANK(I92))*NOT(ISBLANK(K92))),"Error",IF(ISBLANK(I92),K92,I92*L92))) -> 60 | N92: Sistema BTC-Impermeabilizantes SANI S.L. | O92: =IF(N92="Otro",$A$1,VLOOKUP(N92, INDIRECT(A92),2,FALSE)) -> 0.11 | P92: 0.4 | R92: =IF(O92="Valor:",M92*P92,M92*O92) -> 6.6 | S92: =M92-R92 -> 53.4
R93: =SUM(R80:R92) -> 674.09 | S93: =SUM(S80:S92) -> 1521.91 | U93: =R93/(R93+S93) -> 0.3069626594
G95: PARTICIONES INTERIORES | I95: m3 | L95: d | M95: kg | O95: % reciclado | R95: Material Reciclado [Kg] | S95: Material no Reciclado [Kg] | U95: Material Reciclado [%]
A96: CALCULO_EDIF!C1749:D70 | B96: 1725 | C96: 1749 | D96: 70 | E96: CALCULO_EDIF!C1725:C1749 | G96: TABIQUERIA | H96: LHD 1/2 pie (tabicón) | I96: 20 | L96: 770 | M96: =IF(AND(ISBLANK(I96)*ISBLANK(K96)),"-",IF(AND(NOT(ISBLANK(I96))*NOT(ISBLANK(K96))),"Error",IF(ISBLANK(I96),K96,I96*L96))) -> 15400 | N96: material n02 | O96: =IF(N96="Otro",$A$1,VLOOKUP(N96, INDIRECT(A96),2,FALSE)) -> 0.1 | P96: 0.4 | R96: =IF(O96="Valor:",M96*P96,M96*O96) -> 1540 | S96: =M96-R96 -> 13860 | U96: =SUM(R96:R101)/SUM(M96:M101) -> 0.1643226109
A97: CALCULO_EDIF!C1774:D71 | B97: 1750 | C97: 1774 | D97: 71 | E97: CALCULO_EDIF!C1750:C1774 | H97: LHD (8cm) Machetón | I97: 25 | L97: 770 | M97: 19250 | N97: material n04 | O97: 0.2 | P97: 0.4 | R97: 3850 | S97: 15400
A98: CALCULO_EDIF!C1799:D72 | B98: 1775 | C98: 1799 | D98: 72 | E98: CALCULO_EDIF!C1775:C1799 | H98: ladrillo perforado | I98: 10 | L98: 780 | M98: 7800 | N98: material n04 | O98: 0.2 | P98: 0.4 | R98: 1560 | S98: 6240
A99: CALCULO_EDIF!C1824:D73 | B99: 1800 | C99: 1824 | D99: 73 | E99: CALCULO_EDIF!C1800:C1824 | H99: bloques de hormigón | K99: 30 | L99: 1230 | M99: 30 | N99: material n11 | O99: 0.55 | P99: 0.4 | R99: 16.5 | S99: 13.5
A100: CALCULO_EDIF!C1849:D74 | B100: 1825 | C100: 1849 | D100: 74 | E100: CALCULO_EDIF!C1825:C1849 | H100: cartón yeso | K100: 50 | L100: 900 | M100: 50 | N100: Gupsum fibre Board Siglingen-FERMACELL | O100: 0.46 | P100: 0.4 | R100: 23 | S100: 27
A101: CALCULO_EDIF!C1874:D75 | B101: 1850 | C101: 1874 | D101: 75 | E101: CALCULO_EDIF!C1850:C1874 | H101: otros | K101: 60 | L101: 1000 | M101: 60 | N101: material n03 | O101: 0.15 | P101: 0.4 | R101: 9 | S101: 51
A103: CALCULO_EDIF!C1899:D76 | B103: 1875 | C103: 1899 | D103: 76 | E103: CALCULO_EDIF!C1875:C1899 | G103: MAMPARAS | H103: opacas metálicas | K103: 85 | L103: 7800 | M103: =IF(AND(ISBLANK(I103)*ISBLANK(K103)),"-",IF(AND(NOT(ISBLANK(I103))*NOT(ISBLANK(K103))),"Error",IF(ISBLANK(I103),K103,I103*L103))) -> 85 | N103: material n05 | O103: =IF(N103="Otro",$A$1,VLOOKUP(N103, INDIRECT(A103),2,FALSE)) -> 0.25 | P103: 0.4 | R103: =IF(O103="Valor:",M103*P103,M103*O103) -> 21.25 | S103: =M103-R103 -> 63.75 | U103: =SUM(R103:R105)/SUM(M103:M105) -> 0.1509471925
A104: CALCULO_EDIF!C1924:D77 | B104: 1900 | C104: 1924 | D104: 77 | E104: CALCULO_EDIF!C1900:C1924 | H104: opacas de aglomerado | I104: 1 | L104: 680 | M104: =IF(AND(ISBLANK(I104)*ISBLANK(K104)),"-",IF(AND(NOT(ISBLANK(I104))*NOT(ISBLANK(K104))),"Error",IF(ISBLANK(I104),K104,I104*L104))) -> 680 | N104: material n05 | O104: =IF(N104="Otro",$A$1,VLOOKUP(N104, INDIRECT(A104),2,FALSE)) -> 0.25 | P104: 0.4 | R104: =IF(O104="Valor:",M104*P104,M104*O104) -> 170 | S104: =M104-R104 -> 510
A105: CALCULO_EDIF!C1949:D78 | B105: 1925 | C105: 1949 | D105: 78 | E105: CALCULO_EDIF!C1925:C1949 | H105: de vidrio | I105: 32 | L105: 2500 | M105: =IF(AND(ISBLANK(I105)*ISBLANK(K105)),"-",IF(AND(NOT(ISBLANK(I105))*NOT(ISBLANK(K105))),"Error",IF(ISBLANK(I105),K105,I105*L105))) -> 80000 | N105: material n03 | O105: =IF(N105="Otro",$A$1,VLOOKUP(N105, INDIRECT(A105),2,FALSE)) -> 0.15 | P105: 0.4 | R105: =IF(O105="Valor:",M105*P105,M105*O105) -> 12000 | S105: =M105-R105 -> 68000
A107: CALCULO_EDIF!C1974:D79 | B107: 1950 | C107: 1974 | D107: 79 | E107: CALCULO_EDIF!C1950:C1974 | G107: CARPINTERIA INTERIOR | H107: puertas madera | I107: 1 | L107: 700 | M107: =IF(AND(ISBLANK(I107)*ISBLANK(K107)),"-",IF(AND(NOT(ISBLANK(I107))*NOT(ISBLANK(K107))),"Error",IF(ISBLANK(I107),K107,I107*L107))) -> 700 | N107: Puertas de interior JELD-WEN | O107: =IF(N107="Otro",$A$1,VLOOKUP(N107, INDIRECT(A107),2,FALSE)) -> 0.56 | P107: 0.4 | R107: =IF(O107="Valor:",M107*P107,M107*O107) -> 392 | S107: =M107-R107 -> 308 | U107: =SUM(R107:R109)/SUM(M107:M109) -> 0.5565563025
A108: CALCULO_EDIF!C1999:D80 | B108: 1975 | C108: 1999 | D108: 80 | E108: CALCULO_EDIF!C1975:C1999 | H108: puertas metálicas | I108: 2 | L108: 7800 | M108: =IF(AND(ISBLANK(I108)*ISBLANK(K108)),"-",IF(AND(NOT(ISBLANK(I108))*NOT(ISBLANK(K108))),"Error",IF(ISBLANK(I108),K108,I108*L108))) -> 15600 | N108: Crawford OH1042P-ASSA ABLOY | O108: =IF(N108="Otro",$A$1,VLOOKUP(N108, INDIRECT(A108),2,FALSE)) -> 0.7759 | P108: 0.4 | R108: =IF(O108="Valor:",M108*P108,M108*O108) -> 12104.04 | S108: =M108-R108 -> 3495.96
A109: CALCULO_EDIF!C2024:D81 | B109: 2000 | C109: 2024 | D109: 81 | E109: CALCULO_EDIF!C2000:C2024 | H109: vidrio puertas interiores | I109: 3 | L109: 2500 | M109: =IF(AND(ISBLANK(I109)*ISBLANK(K109)),"-",IF(AND(NOT(ISBLANK(I109))*NOT(ISBLANK(K109))),"Error",IF(ISBLANK(I109),K109,I109*L109))) -> 7500 | N109: material n02 | O109: =IF(N109="Otro",$A$1,VLOOKUP(N109, INDIRECT(A109),2,FALSE)) -> 0.1 | P109: 0.4 | R109: =IF(O109="Valor:",M109*P109,M109*O109) -> 750 | S109: =M109-R109 -> 6750
R110: =SUM(R96:R109) -> 32435.79 | S110: =SUM(S96:S109) -> 114719.21 | U110: =R110/(R110+S110) -> 0.2204192178
G112: REVESTIMIENTOS | I112: m3 | L112: d | M112: kg | O112: % reciclado | R112: Material Reciclado [Kg] | S112: Material no Reciclado [Kg] | U112: Material Reciclado [%]
A113: CALCULO_EDIF!C2049:D82 | B113: 2025 | C113: 2049 | D113: 82 | E113: CALCULO_EDIF!C2025:C2049 | G113: PARAMENTOS | H113: guarnecido y enlucido de yeso | K113: 20 | L113: 1300 | M113: =IF(AND(ISBLANK(I113)*ISBLANK(K113)),"-",IF(AND(NOT(ISBLANK(I113))*NOT(ISBLANK(K113))),"Error",IF(ISBLANK(I113),K113,I113*L113))) -> 20 | N113: material n02 | O113: =IF(N113="Otro",$A$1,VLOOKUP(N113, INDIRECT(A113),2,FALSE)) -> 0.1 | P113: 0.4 | R113: =IF(O113="Valor:",M113*P113,M113*O113) -> 2 | S113: =M113-R113 -> 18 | U113: =SUM(R113:R123)/SUM(M113:M123) -> 0.3523804598
A114: CALCULO_EDIF!C2074:D83 | B114: 2050 | C114: 2074 | D114: 83 | E114: CALCULO_EDIF!C2050:C2074 | H114: enfoscado | I114: 10 | L114: 1800 | M114: 18000 | N114: material n04 | O114: 0.2 | P114: 0.4 | R114: 3600 | S114: 14400
A115: =CONCATENATE("CALCULO_EDIF!","C",C115,":","D",D115) -> CALCULO_EDIF!C2099:D84 | B115: =IF(D115=1,1,(D115-1)*25) -> 2075 | C115: =IF(D115=1,24,B115+24) -> 2099 | D115: 84 | E115: =CONCATENATE("CALCULO_EDIF!","C",B115,":","C",C115) -> CALCULO_EDIF!C2075:C2099 | H115: morteros | K115: 20 | L115: 1300 | M115: =IF(AND(ISBLANK(I115)*ISBLANK(K115)),"-",IF(AND(NOT(ISBLANK(I115))*NOT(ISBLANK(K115))),"Error",IF(ISBLANK(I115),K115,I115*L115))) -> 20 | N115: material n02 | O115: =IF(N115="Otro",$A$1,VLOOKUP(N115, INDIRECT(A115),2,FALSE)) -> 0.1 | P115: 0.4 | R115: =IF(O115="Valor:",M115*P115,M115*O115) -> 2 | S115: =M115-R115 -> 18
A116: CALCULO_EDIF!C2124:D85 | B116: 2100 | C116: 2124 | D116: 85 | E116: CALCULO_EDIF!C2100:C2124 | H116: tableros de partículas de madera | I116: 2 | L116: 640 | M116: 1280 | N116: Tableros MEDITE FR-Roseburg Forest Products | O116: 0.82 | P116: 0.4 | R116: 1049.6 | S116: 230.4
A117: CALCULO_EDIF!C2149:D86 | B117: 2125 | C117: 2149 | D117: 86 | E117: CALCULO_EDIF!C2125:C2149 | H117: tableros de madera natural | K117: 50 | L117: 750 | M117: 50 | N117: material n02 | O117: 0.1 | P117: 0.4 | R117: 5 | S117: 45
A118: CALCULO_EDIF!C2174:D87 | B118: 2150 | C118: 2174 | D118: 87 | E118: CALCULO_EDIF!C2150:C2174 | H118: alicatado cerámico | K118: 20 | L118: 2000 | M118: 20 | N118: Chromtech-Floor Gres | O118: 0.4 | P118: 0.4 | R118: 8 | S118: 12
A119: CALCULO_EDIF!C2199:D88 | B119: 2175 | C119: 2199 | D119: 88 | E119: CALCULO_EDIF!C2175:C2199 | H119: gres | I119: 1 | L119: 2600 | M119: 2600 | N119: material n01 | O119: 0.05 | P119: 0.4 | R119: 130 | S119: 2470
A120: CALCULO_EDIF!C2224:D89 | B120: 2200 | C120: 2224 | D120: 89 | E120: CALCULO_EDIF!C2200:C2224 | H120: revestimientos sintéticos | I120: 1 | L120: 1000 | M120: 1000 | N120: material n03 | O120: 0.15 | P120: 0.4 | R120: 150 | S120: 850
A121: CALCULO_EDIF!C2249:D90 | B121: 2225 | C121: 2249 | D121: 90 | E121: CALCULO_EDIF!C2225:C2249 | H121: papel | K121: 10 | L121: 130 | M121: 10 | N121: material n01 | O121: 0.05 | P121: 0.4 | R121: 0.5 | S121: 9.5
A122: CALCULO_EDIF!C2274:D91 | B122: 2250 | C122: 2274 | D122: 91 | E122: CALCULO_EDIF!C2250:C2274 | H122: pintura | I122: 45 | L122: 1200 | M122: 54000 | N122: material n06 | O122: 0.3 | P122: 0.4 | R122: 16200 | S122: 37800
A123: CALCULO_EDIF!C2299:D92 | B123: 2275 | C123: 2299 | D123: 92 | E123: CALCULO_EDIF!C2275:C2299 | H123: otros | I123: 10 | L123: 1000 | M123: 10000 | N123: Mosaico UNICOLOR 103-Hisbalit | O123: 0.951 | P123: 0.4 | R123: 9510 | S123: 490
A125: CALCULO_EDIF!C2324:D93 | B125: 2300 | C125: 2324 | D125: 93 | E125: CALCULO_EDIF!C2300:C2324 | G125: SUELOS Y ESCALERAS | H125: terrazo | I125: 64 | L125: 1800 | M125: =IF(AND(ISBLANK(I125)*ISBLANK(K125)),"-",IF(AND(NOT(ISBLANK(I125))*NOT(ISBLANK(K125))),"Error",IF(ISBLANK(I125),K125,I125*L125))) -> 115200 | N125: material n03 | O125: =IF(N125="Otro",$A$1,VLOOKUP(N125, INDIRECT(A125),2,FALSE)) -> 0.15 | P125: 0.01 | R125: =IF(O125="Valor:",M125*P125,M125*O125) -> 17280 | S125: =M125-R125 -> 97920 | U125: =SUM(R125:R132)/SUM(M125:M133) -> 0.1996382603
A126: CALCULO_EDIF!C2349:D94 | B126: 2325 | C126: 2349 | D126: 94 | E126: CALCULO_EDIF!C2325:C2349 | H126: baldosa cerámica | K126: 63 | L126: 2300 | M126: 63 | N126: material n03 | O126: 0.15 | P126: 0.4 | R126: 9.45 | S126: 53.55
A127: CALCULO_EDIF!C2374:D95 | B127: 2350 | C127: 2374 | D127: 95 | E127: CALCULO_EDIF!C2350:C2374 | H127: piedra | I127: 5 | L127: 2200 | M127: 11000 | N127: material n05 | O127: 0.25 | P127: 0.4 | R127: 2750 | S127: 8250
A128: CALCULO_EDIF!C2399:D96 | B128: 2375 | C128: 2399 | D128: 96 | E128: CALCULO_EDIF!C2375:C2399 | H128: madera | K128: 40 | L128: 800 | M128: 40 | N128: material n03 | O128: 0.15 | P128: 0.4 | R128: 6 | S128: 34
A129: CALCULO_EDIF!C2424:D97 | B129: 2400 | C129: 2424 | D129: 97 | E129: CALCULO_EDIF!C2400:C2424 | H129: suelos sintéticos | I129: 3 | L129: 1200 | M129: 3600 | N129: PREMIUM PLUS: Alterna™ Luxury Tile-Armstrong World Industries, Inc. | O129: 0.4 | P129: 0.4 | R129: 1440 | S129: 2160
A130: CALCULO_EDIF!C2449:D98 | B130: 2425 | C130: 2449 | D130: 98 | E130: CALCULO_EDIF!C2425:C2449 | H130: suelo técnico | K130: 54 | L130: 1100 | M130: 54 | N130: material n05 | O130: 0.25 | P130: 0.4 | R130: 13.5 | S130: 40.5
A131: CALCULO_EDIF!C2474:D99 | B131: 2450 | C131: 2474 | D131: 99 | E131: CALCULO_EDIF!C2450:C2474 | H131: moquetas | I131: 55 | L131: 200 | M131: 11000 | N131: Biosfera-Bouclé - Interface | O131: 0.6 | P131: 0.4 | R131: 6600 | S131: 4400
A132: CALCULO_EDIF!C2499:D100 | B132: 2475 | C132: 2499 | D132: 100 | E132: CALCULO_EDIF!C2475:C2499 | H132: otros | K132: 56 | L132: 1000 | M132: 56 | N132: Geolam-Maderas GAMIZ | O132: 0.94 | P132: 0.4 | R132: 52.64 | S132: 3.36
A134: =CONCATENATE("CALCULO_EDIF!","C",C134,":","D",D134) -> CALCULO_EDIF!C2524:D101 | B134: 2500 | C134: =IF(D134=1,24,B134+24) -> 2524 | D134: 101 | E134: CALCULO_EDIF!C2500:C2524 | G134: TECHOS | H134: paneles metálicos | I134: 5 | L134: 7800 | M134: =IF(AND(ISBLANK(I134)*ISBLANK(K134)),"-",IF(AND(NOT(ISBLANK(I134))*NOT(ISBLANK(K134))),"Error",IF(ISBLANK(I134),K134,I134*L134))) -> 39000 | N134: Ultra Microperforated Rg 0501-ARMSTRONG | O134: =IF(N134="Otro",$A$1,VLOOKUP(N134, INDIRECT(A134),2,FALSE)) -> 0.3 | P134: 0.4 | R134: =IF(O134="Valor:",M134*P134,M134*O134) -> 11700 | S134: =M134-R134 -> 27300 | U134: =SUM(R134:R138)/SUM(M134:M138) -> 0.2481887367
A135: CALCULO_EDIF!C2549:D102 | B135: 2525 | C135: 2549 | D135: 102 | E135: CALCULO_EDIF!C2525:C2549 | H135: paneles de fibra de madera | I135: 15 | L135: 680 | M135: =IF(AND(ISBLANK(I135)*ISBLANK(K135)),"-",IF(AND(NOT(ISBLANK(I135))*NOT(ISBLANK(K135))),"Error",IF(ISBLANK(I135),K135,I135*L135))) -> 10200 | N135: material n01 | O135: =IF(N135="Otro",$A$1,VLOOKUP(N135, INDIRECT(A135),2,FALSE)) -> 0.05 | P135: 0.4 | R135: =IF(O135="Valor:",M135*P135,M135*O135) -> 510 | S135: =M135-R135 -> 9690
A136: CALCULO_EDIF!C2574:D103 | B136: 2550 | C136: 2574 | D136: 103 | E136: CALCULO_EDIF!C2550:C2574 | H136: paneles sintéticos | K136: 20 | L136: 1200 | M136: =IF(AND(ISBLANK(I136)*ISBLANK(K136)),"-",IF(AND(NOT(ISBLANK(I136))*NOT(ISBLANK(K136))),"Error",IF(ISBLANK(I136),K136,I136*L136))) -> 20 | N136: material n04 | O136: =IF(N136="Otro",$A$1,VLOOKUP(N136, INDIRECT(A136),2,FALSE)) -> 0.2 | P136: 0.4 | R136: =IF(O136="Valor:",M136*P136,M136*O136) -> 4 | S136: =M136-R136 -> 16
A137: CALCULO_EDIF!C2599:D104 | B137: 2575 | C137: 2599 | D137: 104 | E137: CALCULO_EDIF!C2575:C2599 | H137: paneles de lana mineral | K137: 25 | L137: 110 | M137: =IF(AND(ISBLANK(I137)*ISBLANK(K137)),"-",IF(AND(NOT(ISBLANK(I137))*NOT(ISBLANK(K137))),"Error",IF(ISBLANK(I137),K137,I137*L137))) -> 25 | N137: Ultima "+" - ARMSTRONG | O137: =IF(N137="Otro",$A$1,VLOOKUP(N137, INDIRECT(A137),2,FALSE)) -> 0.5 | P137: 0.4 | R137: =IF(O137="Valor:",M137*P137,M137*O137) -> 12.5 | S137: =M137-R137 -> 12.5
A138: CALCULO_EDIF!C2624:D105 | B138: 2600 | C138: 2624 | D138: 105 | E138: CALCULO_EDIF!C2600:C2624 | H138: enlucido de yeso | K138: 30 | L138: 1300 | M138: =IF(AND(ISBLANK(I138)*ISBLANK(K138)),"-",IF(AND(NOT(ISBLANK(I138))*NOT(ISBLANK(K138))),"Error",IF(ISBLANK(I138),K138,I138*L138))) -> 30 | N138: material n02 | O138: =IF(N138="Otro",$A$1,VLOOKUP(N138, INDIRECT(A138),2,FALSE)) -> 0.1 | P138: 0.4 | R138: =IF(O138="Valor:",M138*P138,M138*O138) -> 3 | S138: =M138-R138 -> 27
R139: =SUM(R113:R138) -> 71038.19 | S139: =SUM(S113:S138) -> 206249.81 | U139: =R139/(R139+S139) -> 0.2561891968
G141: INSTALACIONES | I141: m3 | L141: d | M141: kg | O141: % reciclado | R141: Material Reciclado [Kg] | S141: Material no Reciclado [Kg] | U141: Material Reciclado [%]
A142: =CONCATENATE("CALCULO_EDIF!","C",C142,":","D",D142) -> CALCULO_EDIF!C2649:D106 | B142: =IF(D142=1,1,(D142-1)*25) -> 2625 | C142: =IF(D142=1,24,B142+24) -> 2649 | D142: 106 | E142: =CONCATENATE("CALCULO_EDIF!","C",B142,":","C",C142) -> CALCULO_EDIF!C2625:C2649 | G142: ELECTRICIDAD | H142: redes | I142: 5 | L142: 2100 | M142: =IF(AND(ISBLANK(I142)*ISBLANK(K142)),"-",IF(AND(NOT(ISBLANK(I142))*NOT(ISBLANK(K142))),"Error",IF(ISBLANK(I142),K142,I142*L142))) -> 10500 | N142: material n02 | O142: =IF(N142="Otro",$A$1,VLOOKUP(N142, INDIRECT(A142),2,FALSE)) -> 0.1 | P142: 0.4 | R142: =IF(O142="Valor:",M142*P142,M142*O142) -> 1050 | S142: =M142-R142 -> 9450 | U142: =SUM(R142:R146)/SUM(M142:M146) -> 0.09999108734
A143: =CONCATENATE("CALCULO_EDIF!","C",C143,":","D",D143) -> CALCULO_EDIF!C2674:D107 | B143: =IF(D143=1,1,(D143-1)*25) -> 2650 | C143: =IF(D143=1,24,B143+24) -> 2674 | D143: 107 | E143: =CONCATENATE("CALCULO_EDIF!","C",B143,":","C",C143) -> CALCULO_EDIF!C2650:C2674 | H143: protección y control | I143: 15 | L143: 2100 | M143: =IF(AND(ISBLANK(I143)*ISBLANK(K143)),"-",IF(AND(NOT(ISBLANK(I143))*NOT(ISBLANK(K143))),"Error",IF(ISBLANK(I143),K143,I143*L143))) -> 31500 | N143: material n02 | O143: =IF(N143="Otro",$A$1,VLOOKUP(N143, INDIRECT(A143),2,FALSE)) -> 0.1 | P143: 0.4 | R143: =IF(O143="Valor:",M143*P143,M143*O143) -> 3150 | S143: =M143-R143 -> 28350
A144: CALCULO_EDIF!C2699:D108 | B144: 2675 | C144: 2699 | D144: 108 | E144: CALCULO_EDIF!C2675:C2699 | H144: domotica | K144: 20 | L144: 2100 | M144: =IF(AND(ISBLANK(I144)*ISBLANK(K144)),"-",IF(AND(NOT(ISBLANK(I144))*NOT(ISBLANK(K144))),"Error",IF(ISBLANK(I144),K144,I144*L144))) -> 20 | N144: material n02 | O144: 0.1 | P144: 0.4 | R144: 2 | S144: 18
A145: CALCULO_EDIF!C2724:D109 | B145: 2700 | C145: 2724 | D145: 109 | E145: CALCULO_EDIF!C2700:C2724 | H145: alumbrado | K145: 25 | L145: 2100 | M145: =IF(AND(ISBLANK(I145)*ISBLANK(K145)),"-",IF(AND(NOT(ISBLANK(I145))*NOT(ISBLANK(K145))),"Error",IF(ISBLANK(I145),K145,I145*L145))) -> 25 | N145: MIREL-L A LED2800-830 L1200 EVG-Zumtobel | O145: 0.085 | P145: 0.4 | R145: 2.125 | S145: 22.875
A146: CALCULO_EDIF!C2749:D110 | B146: 2725 | C146: 2749 | D146: 110 | E146: CALCULO_EDIF!C2725:C2749 | H146: otros | K146: 30 | L146: 2100 | M146: =IF(AND(ISBLANK(I146)*ISBLANK(K146)),"-",IF(AND(NOT(ISBLANK(I146))*NOT(ISBLANK(K146))),"Error",IF(ISBLANK(I146),K146,I146*L146))) -> 30 | N146: material n02 | O146: 0.1 | P146: 0.4 | R146: 3 | S146: 27
A148: =CONCATENATE("CALCULO_EDIF!","C",C148,":","D",D148) -> CALCULO_EDIF!C2774:D111 | B148: =IF(D148=1,1,(D148-1)*25) -> 2750 | C148: =IF(D148=1,24,B148+24) -> 2774 | D148: 111 | E148: =CONCATENATE("CALCULO_EDIF!","C",B148,":","C",C148) -> CALCULO_EDIF!C2750:C2774 | G148: ABASTECIMIENTO | H148: bombas | I148: 5 | L148: 2100 | M148: =IF(AND(ISBLANK(I148)*ISBLANK(K148)),"-",IF(AND(NOT(ISBLANK(I148))*NOT(ISBLANK(K148))),"Error",IF(ISBLANK(I148),K148,I148*L148))) -> 10500 | N148: material n02 | O148: =IF(N148="Otro",$A$1,VLOOKUP(N148, INDIRECT(A148),2,FALSE)) -> 0.1 | P148: 0.4 | R148: =IF(O148="Valor:",M148*P148,M148*O148) -> 1050 | S148: =M148-R148 -> 9450 | U148: =SUM(R148:R152)/SUM(M148:M152) -> 0.1
A149: CALCULO_EDIF!C2799:D112 | B149: 2775 | C149: 2799 | D149: 112 | E149: CALCULO_EDIF!C2775:C2799 | H149: fontanería | I149: 15 | L149: 2100 | M149: 31500 | N149: material n02 | O149: 0.1 | P149: 0.4 | R149: 3150 | S149: 28350
A150: CALCULO_EDIF!C2824:D113 | B150: 2800 | C150: 2824 | D150: 113 | E150: CALCULO_EDIF!C2800:C2824 | H150: tuberías, valvulas y griferías | K150: 20 | L150: 2100 | M150: 20 | N150: material n02 | O150: 0.1 | P150: 0.4 | R150: 2 | S150: 18
A151: CALCULO_EDIF!C2849:D114 | B151: 2825 | C151: 2849 | D151: 114 | E151: CALCULO_EDIF!C2825:C2849 | H151: aparatos sanitarios | K151: 25 | L151: 2100 | M151: 25 | N151: material n02 | O151: 0.1 | P151: 0.4 | R151: 2.5 | S151: 22.5
A152: CALCULO_EDIF!C2874:D115 | B152: 2850 | C152: 2874 | D152: 115 | E152: CALCULO_EDIF!C2850:C2874 | H152: otros | K152: 30 | L152: 2100 | M152: 30 | N152: material n02 | O152: 0.1 | P152: 0.4 | R152: 3 | S152: 27
A154: =CONCATENATE("CALCULO_EDIF!","C",C154,":","D",D154) -> CALCULO_EDIF!C2899:D116 | B154: =IF(D154=1,1,(D154-1)*25) -> 2875 | C154: =IF(D154=1,24,B154+24) -> 2899 | D154: 116 | E154: =CONCATENATE("CALCULO_EDIF!","C",B154,":","C",C154) -> CALCULO_EDIF!C2875:C2899 | G154: CLIMATIZACIÓN | H154: calefacción | K154: 20 | L154: 2100 | M154: =IF(AND(ISBLANK(I154)*ISBLANK(K154)),"-",IF(AND(NOT(ISBLANK(I154))*NOT(ISBLANK(K154))),"Error",IF(ISBLANK(I154),K154,I154*L154))) -> 20 | N154: material n02 | O154: =IF(N154="Otro",$A$1,VLOOKUP(N154, INDIRECT(A154),2,FALSE)) -> 0.1 | P154: 0.4 | R154: =IF(O154="Valor:",M154*P154,M154*O154) -> 2 | S154: =M154-R154 -> 18 | U154: =SUM(R154:R157)/SUM(M154:M157) -> 0.1
A155: CALCULO_EDIF!C2924:D117 | B155: 2900 | C155: 2924 | D155: 117 | E155: CALCULO_EDIF!C2900:C2924 | H155: aire acondicionado | K155: 50 | L155: 2100 | M155: 50 | N155: material n02 | O155: 0.1 | P155: 0.4 | R155: 5 | S155: 45
A156: CALCULO_EDIF!C2949:D118 | B156: 2925 | C156: 2949 | D156: 118 | E156: CALCULO_EDIF!C2925:C2949 | H156: tuberías y valvulas | K156: 20 | L156: 2100 | M156: 20 | N156: material n02 | O156: 0.1 | P156: 0.4 | R156: 2 | S156: 18
A157: CALCULO_EDIF!C2974:D119 | B157: 2950 | C157: 2974 | D157: 119 | E157: CALCULO_EDIF!C2950:C2974 | H157: otros | K157: 10 | L157: 2100 | M157: 10 | N157: material n02 | O157: 0.1 | P157: 0.4 | R157: 1 | S157: 9
A159: =CONCATENATE("CALCULO_EDIF!","C",C159,":","D",D159) -> CALCULO_EDIF!C2999:D120 | B159: =IF(D159=1,1,(D159-1)*25) -> 2975 | C159: =IF(D159=1,24,B159+24) -> 2999 | D159: 120 | E159: =CONCATENATE("CALCULO_EDIF!","C",B159,":","C",C159) -> CALCULO_EDIF!C2975:C2999 | G159: SANEAMIENTO | H159: bajantes | K159: 20 | L159: 2100 | M159: =IF(AND(ISBLANK(I159)*ISBLANK(K159)),"-",IF(AND(NOT(ISBLANK(I159))*NOT(ISBLANK(K159))),"Error",IF(ISBLANK(I159),K159,I159*L159))) -> 20 | N159: material n02 | O159: =IF(N159="Otro",$A$1,VLOOKUP(N159, INDIRECT(A159),2,FALSE)) -> 0.1 | P159: 0.4 | R159: =IF(O159="Valor:",M159*P159,M159*O159) -> 2 | S159: =M159-R159 -> 18 | U159: =SUM(R159:R164)/SUM(M159:M164) -> 0.1
A160: CALCULO_EDIF!C3024:D121 | B160: 3000 | C160: 3024 | D160: 121 | E160: CALCULO_EDIF!C3000:C3024 | H160: depuración | K160: 25 | L160: 2100 | M160: 25 | N160: material n02 | O160: 0.1 | P160: 0.4 | R160: 2.5 | S160: 22.5
A161: CALCULO_EDIF!C3049:D122 | B161: 3025 | C161: 3049 | D161: 122 | E161: CALCULO_EDIF!C3025:C3049 | H161: humos y gases | K161: 30 | L161: 2100 | M161: 30 | N161: material n02 | O161: 0.1 | P161: 0.4 | R161: 3 | S161: 27
A162: CALCULO_EDIF!C3074:D123 | B162: 3050 | C162: 3074 | D162: 123 | E162: CALCULO_EDIF!C3050:C3074 | H162: saneamiento | K162: 20 | L162: 2100 | M162: 20 | N162: material n02 | O162: 0.1 | P162: 0.4 | R162: 2 | S162: 18
A163: CALCULO_EDIF!C3099:D124 | B163: 3075 | C163: 3099 | D163: 124 | E163: CALCULO_EDIF!C3075:C3099 | H163: ventilación | K163: 25 | L163: 2100 | M163: 25 | N163: material n02 | O163: 0.1 | P163: 0.4 | R163: 2.5 | S163: 22.5
A164: CALCULO_EDIF!C3124:D125 | B164: 3100 | C164: 3124 | D164: 125 | E164: CALCULO_EDIF!C3100:C3124 | H164: otros | K164: 30 | L164: 2100 | M164: 30 | N164: material n02 | O164: 0.1 | P164: 0.4 | R164: 3 | S164: 27
A166: =CONCATENATE("CALCULO_EDIF!","C",C166,":","D",D166) -> CALCULO_EDIF!C3149:D126 | B166: =IF(D166=1,1,(D166-1)*25) -> 3125 | C166: =IF(D166=1,24,B166+24) -> 3149 | D166: 126 | E166: =CONCATENATE("CALCULO_EDIF!","C",B166,":","C",C166) -> CALCULO_EDIF!C3125:C3149 | G166: ENERGIA SOLAR | H166: paneles | K166: 20 | L166: 2100 | M166: =IF(AND(ISBLANK(I166)*ISBLANK(K166)),"-",IF(AND(NOT(ISBLANK(I166))*NOT(ISBLANK(K166))),"Error",IF(ISBLANK(I166),K166,I166*L166))) -> 20 | N166: material n02 | O166: =IF(N166="Otro",$A$1,VLOOKUP(N166, INDIRECT(A166),2,FALSE)) -> 0.1 | P166: 0.4 | R166: =IF(O166="Valor:",M166*P166,M166*O166) -> 2 | S166: =M166-R166 -> 18 | U166: =SUM(R166:R171)/SUM(M166:M171) -> 0.1
A167: CALCULO_EDIF!C3174:D127 | B167: 3150 | C167: 3174 | D167: 127 | E167: CALCULO_EDIF!C3150:C3174 | H167: acumuladores | K167: 25 | L167: 2100 | M167: 25 | N167: material n02 | O167: 0.1 | P167: 0.4 | R167: 2.5 | S167: 22.5
A168: CALCULO_EDIF!C3199:D128 | B168: 3175 | C168: 3199 | D168: 128 | E168: CALCULO_EDIF!C3175:C3199 | H168: bombas, valvulas y tuberias | K168: 30 | L168: 2100 | M168: 30 | N168: material n02 | O168: 0.1 | P168: 0.4 | R168: 3 | S168: 27
A169: CALCULO_EDIF!C3224:D129 | B169: 3200 | C169: 3224 | D169: 129 | E169: CALCULO_EDIF!C3200:C3224 | H169: red electrica | I169: 20 | L169: 2100 | M169: 42000 | N169: material n02 | O169: 0.1 | P169: 0.4 | R169: 4200 | S169: 37800
A170: CALCULO_EDIF!C3249:D130 | B170: 3225 | C170: 3249 | D170: 130 | E170: CALCULO_EDIF!C3225:C3249 | H170: baterias | I170: 25 | L170: 2100 | M170: 52500 | N170: material n02 | O170: 0.1 | P170: 0.4 | R170: 5250 | S170: 47250
A171: CALCULO_EDIF!C3274:D131 | B171: 3250 | C171: 3274 | D171: 131 | E171: CALCULO_EDIF!C3250:C3274 | H171: otros | I171: 30 | L171: 2100 | M171: 63000 | N171: material n02 | O171: 0.1 | P171: 0.4 | R171: 6300 | S171: 56700
R172: =SUM(R142:R164) -> 8439.625 | S172: =SUM(S142:S164) -> 75960.375 | U172: =R172/(R172+S172) -> 0.09999555687

Sheet entrada datos Urbanizacion
A1: Valor:
B2: fila empieza | C2: Fila termina | D2: Lista asociada | E2: Para poner en la lista | G2: APLICACIONES NO LIGADAS | I2: m3 | J2: o | K2: Kg | L2: d | M2: kg | N2: Material seleccionado | O2: % reciclado | R2: Material Reciclado [Kg] | S2: Material no Reciclado [Kg] | U2: Material Reciclado [%]
A3: =CONCATENATE("CALCULO_EDIF!","C",C3,":","D",D3) -> CALCULO_EDIF!C3299:D132 | B3: =IF(D3=1,1,(D3-1)*25) -> 3275 | C3: =IF(D3=1,24,B3+24) -> 3299 | D3: 132 | E3: =CONCATENATE("CALCULO_EDIF!","C",B3,":","C",C3) -> CALCULO_EDIF!C3275:C3299 | G3: DRENAJE | H3: drenaje de grava | I3: 5 | L3: 1800 | M3: =IF(AND(ISBLANK(I3)*ISBLANK(K3)),"-",IF(AND(NOT(ISBLANK(I3))*NOT(ISBLANK(K3))),"Error",IF(ISBLANK(I3),K3,I3*L3))) -> 9000 | N3: material n03 | O3: =IF(N3="Otro",$A$1,VLOOKUP(N3, INDIRECT(A3),2,FALSE)) -> 0.15 | P3: 0.4 | R3: =IF(O3="Valor:",M3*P3,M3*O3) -> 1350 | S3: =M3-R3 -> 7650 | U3: =SUM(R3:R3)/SUM(M3:M3) -> 0.15
A5: =CONCATENATE("CALCULO_EDIF!","C",C5,":","D",D5) -> CALCULO_EDIF!C3324:D133 | B5: 3300 | C5: =IF(D5=1,24,B5+24) -> 3324 | D5: 133 | E5: =CONCATENATE("CALCULO_EDIF!","C",B5,":","C",C5) -> CALCULO_EDIF!C3300:C3324 | G5: MOVIMIENTO E TIERRAS | H5: material de explanadas | K5: 20 | L5: 2500 | M5: =IF(AND(ISBLANK(I5)*ISBLANK(K5)),"-",IF(AND(NOT(ISBLANK(I5))*NOT(ISBLANK(K5))),"Error",IF(ISBLANK(I5),K5,I5*L5))) -> 20 | N5: material n04 | O5: =IF(N5="Otro",$A$1,VLOOKUP(N5, INDIRECT(A5),2,FALSE)) -> 0.2 | P5: 0.4 | R5: =IF(O5="Valor:",M5*P5,M5*O5) -> 4 | S5: =M5-R5 -> 16 | U5: =SUM(R5:R8)/SUM(M5:M8) -> 0.1010927835
A6: CALCULO_EDIF!C3349:D134 | B6: 3325 | C6: 3349 | D6: 134 | E6: CALCULO_EDIF!C3325:C3349 | H6: material de terraplenes o afines | K6: 10 | L6: 2500 | M6: =IF(AND(ISBLANK(I6)*ISBLANK(K6)),"-",IF(AND(NOT(ISBLANK(I6))*NOT(ISBLANK(K6))),"Error",IF(ISBLANK(I6),K6,I6*L6))) -> 10 | N6: Otro | O6: =IF(N6="Otro",$A$1,VLOOKUP(N6, INDIRECT(A6),2,FALSE)) -> Valor: | P6: 0.23 | R6: =IF(O6="Valor:",M6*P6,M6*O6) -> 2.3 | S6: =M6-R6 -> 7.7
A7: =CONCATENATE("CALCULO_EDIF!","C",C7,":","D",D7) -> CALCULO_EDIF!C3374:D135 | B7: =IF(D7=1,1,(D7-1)*25) -> 3350 | C7: =IF(D7=1,24,B7+24) -> 3374 | D7: 135 | E7: =CONCATENATE("CALCULO_EDIF!","C",B7,":","C",C7) -> CALCULO_EDIF!C3350:C3374 | H7: material para urbanizaciones y rellenos | K7: 20 | L7: 2500 | M7: =IF(AND(ISBLANK(I7)*ISBLANK(K7)),"-",IF(AND(NOT(ISBLANK(I7))*NOT(ISBLANK(K7))),"Error",IF(ISBLANK(I7),K7,I7*L7))) -> 20 | N7: material n04 | O7: =IF(N7="Otro",$A$1,VLOOKUP(N7, INDIRECT(A7),2,FALSE)) -> 0.2 | P7: 0.4 | R7: =IF(O7="Valor:",M7*P7,M7*O7) -> 4 | S7: =M7-R7 -> 16
A8: CALCULO_EDIF!C3399:D136 | B8: 3375 | C8: 3399 | D8: 136 | E8: CALCULO_EDIF!C3375:C3399 | H8: zanjas y pozos | I8: 3 | L8: 1600 | M8: =IF(AND(ISBLANK(I8)*ISBLANK(K8)),"-",IF(AND(NOT(ISBLANK(I8))*NOT(ISBLANK(K8))),"Error",IF(ISBLANK(I8),K8,I8*L8))) -> 4800 | N8: material n02 | O8: =IF(N8="Otro",$A$1,VLOOKUP(N8, INDIRECT(A8),2,FALSE)) -> 0.1 | P8: 0.4 | R8: =IF(O8="Valor:",M8*P8,M8*O8) -> 480 | S8: =M8-R8 -> 4320
A10: CALCULO_EDIF!C3424:D137 | B10: =IF(D10=1,1,(D10-1)*25) -> 3400 | C10: =IF(D10=1,24,B10+24) -> 3424 | D10: 137 | E10: CALCULO_EDIF!C3400:C3424 | G10: SUBBASES | H10: granular | K10: 59 | L10: 1800 | M10: =IF(AND(ISBLANK(I10)*ISBLANK(K10)),"-",IF(AND(NOT(ISBLANK(I10))*NOT(ISBLANK(K10))),"Error",IF(ISBLANK(I10),K10,I10*L10))) -> 59 | N10: material n05 | O10: =IF(N10="Otro",$A$1,VLOOKUP(N10, INDIRECT(A10),2,FALSE)) -> 0.25 | P10: 0.4 | R10: =IF(O10="Valor:",M10*P10,M10*O10) -> 14.75 | S10: =M10-R10 -> 44.25 | U10: =SUM(R10:R14)/SUM(M10:M14) -> 0.2520680646
A11: CALCULO_EDIF!C3449:D138 | B11: 3425 | C11: 3449 | D11: 138 | E11: CALCULO_EDIF!C3425:C3449 | H11: suelo-cemento | K11: 58 | L11: 1800 | M11: =IF(AND(ISBLANK(I11)*ISBLANK(K11)),"-",IF(AND(NOT(ISBLANK(I11))*NOT(ISBLANK(K11))),"Error",IF(ISBLANK(I11),K11,I11*L11))) -> 58 | N11: material n04 | O11: =IF(N11="Otro",$A$1,VLOOKUP(N11, INDIRECT(A11),2,FALSE)) -> 0.2 | P11: 0.4 | R11: =IF(O11="Valor:",M11*P11,M11*O11) -> 11.6 | S11: =M11-R11 -> 46.4
A12: CALCULO_EDIF!C3474:D139 | B12: 3450 | C12: 3474 | D12: 139 | E12: CALCULO_EDIF!C3450:C3474 | H12: grava-emulsión | I12: 45 | L12: 1900 | M12: =IF(AND(ISBLANK(I12)*ISBLANK(K12)),"-",IF(AND(NOT(ISBLANK(I12))*NOT(ISBLANK(K12))),"Error",IF(ISBLANK(I12),K12,I12*L12))) -> 85500 | N12: Otro | O12: =IF(N12="Otro",$A$1,VLOOKUP(N12, INDIRECT(A12),2,FALSE)) -> Valor: | P12: 0.31 | R12: =IF(O12="Valor:",M12*P12,M12*O12) -> 26505 | S12: =M12-R12 -> 58995
A13: CALCULO_EDIF!C3499:D140 | B13: 3475 | C13: 3499 | D13: 140 | E13: CALCULO_EDIF!C3475:C3499 | H13: grava-cemento | I13: 50 | L13: 1900 | M13: =IF(AND(ISBLANK(I13)*ISBLANK(K13)),"-",IF(AND(NOT(ISBLANK(I13))*NOT(ISBLANK(K13))),"Error",IF(ISBLANK(I13),K13,I13*L13))) -> 95000 | N13: material n04 | O13: =IF(N13="Otro",$A$1,VLOOKUP(N13, INDIRECT(A13),2,FALSE)) -> 0.2 | P13: 0.4 | R13: =IF(O13="Valor:",M13*P13,M13*O13) -> 19000 | S13: =M13-R13 -> 76000
A14: CALCULO_EDIF!C3524:D141 | B14: 3500 | C14: 3524 | D14: 141 | E14: CALCULO_EDIF!C3500:C3524 | H14: sablón | K14: 35 | L14: 1500 | M14: =IF(AND(ISBLANK(I14)*ISBLANK(K14)),"-",IF(AND(NOT(ISBLANK(I14))*NOT(ISBLANK(K14))),"Error",IF(ISBLANK(I14),K14,I14*L14))) -> 35 | N14: material n03 | O14: =IF(N14="Otro",$A$1,VLOOKUP(N14, INDIRECT(A14),2,FALSE)) -> 0.15 | P14: 0.4 | R14: =IF(O14="Valor:",M14*P14,M14*O14) -> 5.25 | S14: =M14-R14 -> 29.75
A16: CALCULO_EDIF!C3549:D142 | B16: =IF(D16=1,1,(D16-1)*25) -> 3525 | C16: =IF(D16=1,24,B16+24) -> 3549 | D16: 142 | E16: CALCULO_EDIF!C3525:C3549 | G16: BASES | H16: grava-escoria | I16: 95 | L16: 1800 | M16: =IF(AND(ISBLANK(I16)*ISBLANK(K16)),"-",IF(AND(NOT(ISBLANK(I16))*NOT(ISBLANK(K16))),"Error",IF(ISBLANK(I16),K16,I16*L16))) -> 171000 | N16: material n05 | O16: =IF(N16="Otro",$A$1,VLOOKUP(N16, INDIRECT(A16),2,FALSE)) -> 0.25 | P16: 0.4 | R16: =IF(O16="Valor:",M16*P16,M16*O16) -> 42750 | S16: =M16-R16 -> 128250 | U16: =SUM(R16:R19)/SUM(M16:M19) -> 0.1816764986
A17: CALCULO_EDIF!C3574:D143 | B17: 3550 | C17: 3574 | D17: 143 | E17: CALCULO_EDIF!C3550:C3574 | H17: todo-uno | K17: 63 | L17: 1600 | M17: =IF(AND(ISBLANK(I17)*ISBLANK(K17)),"-",IF(AND(NOT(ISBLANK(I17))*NOT(ISBLANK(K17))),"Error",IF(ISBLANK(I17),K17,I17*L17))) -> 63 | N17: material n03 | O17: =IF(N17="Otro",$A$1,VLOOKUP(N17, INDIRECT(A17),2,FALSE)) -> 0.15 | P17: 0.4 | R17: =IF(O17="Valor:",M17*P17,M17*O17) -> 9.45 | S17: =M17-R17 -> 53.55
A18: CALCULO_EDIF!C3599:D144 | B18: 3575 | C18: 3599 | D18: 144 | E18: CALCULO_EDIF!C3575:C3599 | H18: macadam | I18: 65 | L18: 2200 | M18: =IF(AND(ISBLANK(I18)*ISBLANK(K18)),"-",IF(AND(NOT(ISBLANK(I18))*NOT(ISBLANK(K18))),"Error",IF(ISBLANK(I18),K18,I18*L18))) -> 143000 | N18: material n02 | O18: =IF(N18="Otro",$A$1,VLOOKUP(N18, INDIRECT(A18),2,FALSE)) -> 0.1 | P18: 0.4 | R18: =IF(O18="Valor:",M18*P18,M18*O18) -> 14300 | S18: =M18-R18 -> 128700
A19: CALCULO_EDIF!C3624:D145 | B19: =IF(D19=1,1,(D19-1)*25) -> 3600 | C19: =IF(D19=1,24,B19+24) -> 3624 | D19: 145 | E19: CALCULO_EDIF!C3600:C3624 | H19: zahorra | K19: 50 | L19: 2200 | M19: =IF(AND(ISBLANK(I19)*ISBLANK(K19)),"-",IF(AND(NOT(ISBLANK(I19))*NOT(ISBLANK(K19))),"Error",IF(ISBLANK(I19),K19,I19*L19))) -> 50 | N19: material n03 | O19: =IF(N19="Otro",$A$1,VLOOKUP(N19, INDIRECT(A19),2,FALSE)) -> 0.15 | P19: 0.4 | R19: =IF(O19="Valor:",M19*P19,M19*O19) -> 7.5 | S19: =M19-R19 -> 42.5
A21: CALCULO_EDIF!C3649:D146 | B21: =IF(D21=1,1,(D21-1)*25) -> 3625 | C21: =IF(D21=1,24,B21+24) -> 3649 | D21: 146 | E21: CALCULO_EDIF!C3625:C3649 | G21: PAVIMENTO | H21: pavimento de zahorra | I21: 56 | L21: 2200 | M21: =IF(AND(ISBLANK(I21)*ISBLANK(K21)),"-",IF(AND(NOT(ISBLANK(I21))*NOT(ISBLANK(K21))),"Error",IF(ISBLANK(I21),K21,I21*L21))) -> 123200 | N21: material n05 | O21: =IF(N21="Otro",$A$1,VLOOKUP(N21, INDIRECT(A21),2,FALSE)) -> 0.25 | P21: 0.4 | R21: =IF(O21="Valor:",M21*P21,M21*O21) -> 30800 | S21: =M21-R21 -> 92400 | U21: =SUM(R21:R21)/SUM(M21:M21) -> 0.25
R22: =SUM(R3:R21) -> 135243.85 | S22: =SUM(S3:T21) -> 496571.15 | U22: =R22/(R22+S22) -> 0.2140560924
G24: APLICACIONES LIGADAS / OTROS | I24: m3 | L24: d | M24: kg | O24: % reciclado | R24: Material Reciclado [Kg] | S24: Material no Reciclado [Kg] | U24: Material Reciclado [%]
A25: CALCULO_EDIF!C3674:D147 | B25: =IF(D25=1,1,(D25-1)*25) -> 3650 | C25: 3674 | D25: 147 | E25: CALCULO_EDIF!C3650:C3674 | G25: DRENAJE | H25: drenaje con tubo de PVC | I25: 10 | L25: 1390 | M25: =IF(AND(ISBLANK(I25)*ISBLANK(K25)),"-",IF(AND(NOT(ISBLANK(I25))*NOT(ISBLANK(K25))),"Error",IF(ISBLANK(I25),K25,I25*L25))) -> 13900 | N25: material n07 | O25: =IF(N25="Otro",$A$1,VLOOKUP(N25, INDIRECT(A25),2,FALSE)) -> 0.35 | P25: 0.4 | R25: =IF(O25="Valor:",M25*P25,M25*O25) -> 4865 | S25: =M25-R25 -> 9035 | U25: =SUM(R25:R27)/SUM(M25:M27) -> 0.3497308934
A26: CALCULO_EDIF!C3699:D148 | B26: 3675 | C26: 3699 | D26: 148 | E26: CALCULO_EDIF!C3675:C3699 | H26: drenaje con tubo de hormigón | K26: 15 | L26: 2400 | M26: =IF(AND(ISBLANK(I26)*ISBLANK(K26)),"-",IF(AND(NOT(ISBLANK(I26))*NOT(ISBLANK(K26))),"Error",IF(ISBLANK(I26),K26,I26*L26))) -> 15 | N26: material n06 | O26: =IF(N26="Otro",$A$1,VLOOKUP(N26, INDIRECT(A26),2,FALSE)) -> 0.3 | P26: 0.4 | R26: =IF(O26="Valor:",M26*P26,M26*O26) -> 4.5 | S26: =M26-R26 -> 10.5
A27: CALCULO_EDIF!C3724:D149 | B27: 3700 | C27: 3724 | D27: 149 | E27: CALCULO_EDIF!C3700:C3724 | H27: geotextil | K27: 20 | L27: 200 | M27: =IF(AND(ISBLANK(I27)*ISBLANK(K27)),"-",IF(AND(NOT(ISBLANK(I27))*NOT(ISBLANK(K27))),"Error",IF(ISBLANK(I27),K27,I27*L27))) -> 20 | N27: material n04 | O27: =IF(N27="Otro",$A$1,VLOOKUP(N27, INDIRECT(A27),2,FALSE)) -> 0.2 | P27: 0.4 | R27: =IF(O27="Valor:",M27*P27,M27*O27) -> 4 | S27: =M27-R27 -> 16
A29: CALCULO_EDIF!C3749:D150 | B29: 3725 | C29: 3749 | D29: 150 | E29: CALCULO_EDIF!C3725:C3749 | G29: BASE | H29: hormigón magro | I29: 3 | L29: 2400 | M29: =IF(AND(ISBLANK(I29)*ISBLANK(K29)),"-",IF(AND(NOT(ISBLANK(I29))*NOT(ISBLANK(K29))),"Error",IF(ISBLANK(I29),K29,I29*L29))) -> 7200 | N29: material n05 | O29: =IF(N29="Otro",$A$1,VLOOKUP(N29, INDIRECT(A29),2,FALSE)) -> 0.25 | P29: 0.4 | R29: =IF(O29="Valor:",M29*P29,M29*O29) -> 1800 | S29: =M29-R29 -> 5400 | U29: =SUM(R29:R33)/SUM(M29:M33) -> 0.1957588969
A30: CALCULO_EDIF!C3774:D151 | B30: 3750 | C30: 3774 | D30: 151 | E30: CALCULO_EDIF!C3750:C3774 | H30: hormigón compactado | I30: 4 | L30: 2400 | M30: 9600 | N30: material n03 | O30: 0.15 | P30: 0.4 | R30: 1440 | S30: 8160
A31: CALCULO_EDIF!C3799:D152 | B31: 3775 | C31: 3799 | D31: 152 | E31: CALCULO_EDIF!C3775:C3799 | H31: suelo-cemento | K31: 5 | L31: 1800 | M31: 5 | N31: material n04 | O31: 0.2 | P31: 0.4 | R31: 1 | S31: 4
A32: CALCULO_EDIF!C3824:D153 | B32: 3800 | C32: 3824 | D32: 153 | E32: CALCULO_EDIF!C3800:C3824 | H32: grava-cemento | I32: 6 | L32: 1900 | M32: 11400 | N32: material n04 | O32: 0.2 | P32: 0.4 | R32: 2280 | S32: 9120
A33: CALCULO_EDIF!C3849:D154 | B33: 3825 | C33: 3849 | D33: 154 | E33: CALCULO_EDIF!C3825:C3849 | H33: grava-emulsión | K33: 7 | L33: 1900 | M33: 7 | N33: material n05 | O33: 0.25 | P33: 0.4 | R33: 1.75 | S33: 5.25
A35: =CONCATENATE("CALCULO_EDIF!","C",C35,":","D",D35) -> CALCULO_EDIF!C3874:D155 | B35: =IF(D35=1,1,(D35-1)*25) -> 3850 | C35: =IF(D35=1,24,B35+24) -> 3874 | D35: 155 | E35: =CONCATENATE("CALCULO_EDIF!","C",B35,":","C",C35) -> CALCULO_EDIF!C3850:C3874 | G35: HORMIGONES Y MORTEROS | H35: hormigones estructurales | I35: 3 | L35: 2400 | M35: =IF(AND(ISBLANK(I35)*ISBLANK(K35)),"-",IF(AND(NOT(ISBLANK(I35))*NOT(ISBLANK(K35))),"Error",IF(ISBLANK(I35),K35,I35*L35))) -> 7200 | N35: material n05 | O35: =IF(N35="Otro",$A$1,VLOOKUP(N35, INDIRECT(A35),2,FALSE)) -> 0.25 | P35: 0.4 | R35: =IF(O35="Valor:",M35*P35,M35*O35) -> 1800 | S35: =M35-R35 -> 5400 | U35: =SUM(R35:R37)/SUM(M35:M37) -> 0.1928592681
A36: CALCULO_EDIF!C3899:D156 | B36: 3875 | C36: 3899 | D36: 156 | E36: CALCULO_EDIF!C3875:C3899 | H36: hormigones no estructurales | I36: 4 | L36: 2400 | M36: 9600 | N36: material n03 | O36: 0.15 | P36: 0.4 | R36: 1440 | S36: 8160
A37: CALCULO_EDIF!C3924:D157 | B37: 3900 | C37: 3924 | D37: 157 | E37: CALCULO_EDIF!C3900:C3924 | H37: morteros | K37: 5 | L37: 1800 | M37: 5 | N37: material n04 | O37: 0.2 | P37: 0.4 | R37: 1 | S37: 4
A39: CALCULO_EDIF!C3949:D158 | B39: 3925 | C39: 3949 | D39: 158 | E39: CALCULO_EDIF!C3925:C3949 | G39: PAVIMENTOS | H39: bituminosos | I39: 10 | L39: 2100 | M39: =IF(AND(ISBLANK(I39)*ISBLANK(K39)),"-",IF(AND(NOT(ISBLANK(I39))*NOT(ISBLANK(K39))),"Error",IF(ISBLANK(I39),K39,I39*L39))) -> 21000 | N39: material n03 | O39: =IF(N39="Otro",$A$1,VLOOKUP(N39, INDIRECT(A39),2,FALSE)) -> 0.15 | P39: 0.4 | R39: =IF(O39="Valor:",M39*P39,M39*O39) -> 3150 | S39: =M39-R39 -> 17850 | U39: =SUM(R39:R57)/SUM(M39:M57) -> 0.401005826
A40: CALCULO_EDIF!C3974:D159 | B40: 3950 | C40: 3974 | D40: 159 | E40: CALCULO_EDIF!C3950:C3974 | H40: loseta hidráulica | K40: 45 | L40: 2100 | M40: 45 | N40: material n10 | O40: 0.5 | P40: 0.4 | R40: 22.5 | S40: 22.5
A41: CALCULO_EDIF!C3999:D160 | B41: 3975 | C41: 3999 | D41: 160 | E41: CALCULO_EDIF!C3975:C3999 | H41: loseta terrazo | K41: 50 | L41: 1800 | M41: 50 | N41: material n04 | O41: 0.2 | P41: 0.4 | R41: 10 | S41: 40
A42: CALCULO_EDIF!C4024:D161 | B42: 4000 | C42: 4024 | D42: 161 | E42: CALCULO_EDIF!C4000:C4024 | H42: losa granito | K42: 65 | L42: 2600 | M42: 65 | N42: material n03 | O42: 0.15 | P42: 0.4 | R42: 9.75 | S42: 55.25
A43: CALCULO_EDIF!C4049:D162 | B43: =IF(D43=1,1,(D43-1)*25) -> 4025 | C43: =IF(D43=1,24,B43+24) -> 4049 | D43: 162 | E43: CALCULO_EDIF!C4025:C4049 | H43: baldosa de asfalto | K43: 20 | L43: 1300 | M43: 20 | N43: material n03 | O43: 0.15 | P43: 0.4 | R43: 3 | S43: 17
A44: CALCULO_EDIF!C4074:D163 | B44: 4050 | C44: 4074 | D44: 163 | E44: CALCULO_EDIF!C4050:C4074 | H44: adoquín de hormigón | I44: 25 | L44: 2400 | M44: 60000 | N44: material n06 | O44: 0.3 | P44: 0.4 | R44: 18000 | S44: 42000
A45: CALCULO_EDIF!C4099:D164 | B45: 4075 | C45: 4099 | D45: 164 | E45: CALCULO_EDIF!C4075:C4099 | H45: adoquín de granito | K45: 56 | L45: 2600 | M45: 56 | N45: Otro | O45: Valor: | P45: 0.32 | R45: 17.92 | S45: 38.08
A46: CALCULO_EDIF!C4124:D165 | B46: =IF(D46=1,1,(D46-1)*25) -> 4100 | C46: =IF(D46=1,24,B46+24) -> 4124 | D46: 165 | E46: CALCULO_EDIF!C4100:C4124 | H46: adoquín cerámico | K46: 36 | L46: 2300 | M46: 36 | N46: material n04 | O46: 0.2 | P46: 0.4 | R46: 7.2 | S46: 28.8
A47: CALCULO_EDIF!C4149:D166 | B47: 4125 | C47: 4149 | D47: 166 | E47: CALCULO_EDIF!C4125:C4149 | H47: baldosa Hormigón pref | K47: 78 | L47: 2200 | M47: 78 | N47: material n05 | O47: 0.25 | P47: 0.4 | R47: 19.5 | S47: 58.5
A48: =CONCATENATE("CALCULO_EDIF!","C",C48,":","D",D48) -> CALCULO_EDIF!C4174:D167 | B48: =IF(D48=1,1,(D48-1)*25) -> 4150 | C48: =IF(D48=1,24,B48+24) -> 4174 | D48: 167 | E48: =CONCATENATE("CALCULO_EDIF!","C",B48,":","C",C48) -> CALCULO_EDIF!C4150:C4174 | H48: pavimento sintético | K48: 10000 | L48: 2200 | M48: =IF(AND(ISBLANK(I48)*ISBLANK(K48)),"-",IF(AND(NOT(ISBLANK(I48))*NOT(ISBLANK(K48))),"Error",IF(ISBLANK(I48),K48,I48*L48))) -> 10000 | N48: LOSETAS FLEXIBLES - ZICLA | O48: =IF(N48="Otro",$A$1,VLOOKUP(N48, INDIRECT(A48),2,FALSE)) -> 1 | P48: 0.1 | R48: =IF(O48="Valor:",M48*P48,M48*O48) -> 10000 | S48: =M48-R48 -> 0
A49: CALCULO_EDIF!C4199:D168 | B49: 4175 | C49: 4199 | D49: 168 | E49: CALCULO_EDIF!C4175:C4199 | H49: pavimento continuo slurry | I49: 10 | L49: 1400 | M49: 14000 | N49: material n04 | O49: 0.2 | P49: 0.4 | R49: 2800 | S49: 11200
A50: CALCULO_EDIF!C4224:D169 | B50: 4200 | C50: 4224 | D50: 169 | E50: CALCULO_EDIF!C4200:C4224 | H50: hormigón impreso | K50: 25 | L50: 2400 | M50: 25 | N50: material n07 | O50: 0.35 | P50: 0.4 | R50: 8.75 | S50: 16.25
A51: CALCULO_EDIF!C4249:D170 | B51: 4225 | C51: 4249 | D51: 170 | E51: CALCULO_EDIF!C4225:C4249 | H51: pavimento de garbancillo | I51: 15 | L51: 1800 | M51: 27000 | N51: material n04 | O51: 0.2 | P51: 0.4 | R51: 5400 | S51: 21600
A52: CALCULO_EDIF!C4274:D171 | B52: 4250 | C52: 4274 | D52: 171 | E52: CALCULO_EDIF!C4250:C4274 | H52: pavimento hormigón prefabricado | I52: 10 | L52: 2500 | M52: 25000 | N52: ECODRAIN-ICA – GRUPO SORIGUE | O52: 0.5 | P52: 0.4 | R52: 12500 | S52: 12500
A53: =CONCATENATE("CALCULO_EDIF!","C",C53,":","D",D53) -> CALCULO_EDIF!C4299:D172 | B53: =IF(D53=1,1,(D53-1)*25) -> 4275 | C53: =IF(D53=1,24,B53+24) -> 4299 | D53: 172 | E53: =CONCATENATE("CALCULO_EDIF!","C",B53,":","C",C53) -> CALCULO_EDIF!C4275:C4299 | H53: pavimento de madera | I53: 10 | L53: 2500 | M53: =IF(AND(ISBLANK(I53)*ISBLANK(K53)),"-",IF(AND(NOT(ISBLANK(I53))*NOT(ISBLANK(K53))),"Error",IF(ISBLANK(I53),K53,I53*L53))) -> 25000 | N53: Pasarela fija/enrollable-ZICLA | O53: =IF(N53="Otro",$A$1,VLOOKUP(N53, INDIRECT(A53),2,FALSE)) -> 1 | P53: 0.4 | R53: =IF(O53="Valor:",M53*P53,M53*O53) -> 25000 | S53: =M53-R53 -> 0
A54: CALCULO_EDIF!C4324:D173 | B54: 4300 | C54: 4324 | D54: 173 | E54: CALCULO_EDIF!C4300:C4324 | H54: otros pavimentos | K54: 100 | L54: 2200 | M54: 10000 | N54: material n11 | O54: =IF(N54="Otro",$A$1,VLOOKUP(N54, INDIRECT(A54),2,FALSE)) -> 0.55 | P54: 0.4 | R54: =IF(O54="Valor:",M54*P54,M54*O54) -> 5500 | S54: =M54-R54 -> 4500
A55: CALCULO_EDIF!C4349:D174 | B55: 4325 | C55: 4349 | D55: 174 | E55: CALCULO_EDIF!C4325:C4349 | H55: base de pavimento peatonal | I55: 12 | L55: 2200 | M55: 26400 | N55: material n04 | O55: 0.2 | P55: 0.4 | R55: 5280 | S55: 21120
A56: CALCULO_EDIF!C4374:D175 | B56: 4350 | C56: 4374 | D56: 175 | E56: CALCULO_EDIF!C4350:C4374 | H56: peldaño granito | K56: 50 | L56: 2600 | M56: 50 | N56: material n07 | O56: 0.35 | P56: 0.4 | R56: 17.5 | S56: 32.5
A57: CALCULO_EDIF!C4399:D176 | B57: 4375 | C57: 4399 | D57: 176 | E57: CALCULO_EDIF!C4375:C4399 | H57: bordillos, cunetas y alcorques | K57: 20 | L57: 2400 | M57: 20 | N57: material n12 | O57: 0.6 | P57: 0.4 | R57: 12 | S57: 8
A59: =CONCATENATE("CALCULO_EDIF!","C",C59,":","D",D59) -> CALCULO_EDIF!C4424:D177 | B59: =IF(D59=1,1,(D59-1)*25) -> 4400 | C59: =IF(D59=1,24,B59+24) -> 4424 | D59: 177 | E59: =CONCATENATE("CALCULO_EDIF!","C",B59,":","C",C59) -> CALCULO_EDIF!C4400:C4424 | G59: RIEGO BITUMINOSOS | H59: riego de adherencia | I59: 1 | L59: 1050 | M59: =IF(AND(ISBLANK(I59)*ISBLANK(K59)),"-",IF(AND(NOT(ISBLANK(I59))*NOT(ISBLANK(K59))),"Error",IF(ISBLANK(I59),K59,I59*L59))) -> 1050 | N59: material n11 | O59: =IF(N59="Otro",$A$1,VLOOKUP(N59, INDIRECT(A59),2,FALSE)) -> 0.55 | P59: 0.4 | R59: =IF(O59="Valor:",M59*P59,M59*O59) -> 577.5 | S59: =M59-R59 -> 472.5 | U59: =SUM(R59:R62)/SUM(M59:M62) -> 0.6205838323
A60: =CONCATENATE("CALCULO_EDIF!","C",C60,":","D",D60) -> CALCULO_EDIF!C4449:D178 | B60: =IF(D60=1,1,(D60-1)*25) -> 4425 | C60: =IF(D60=1,24,B60+24) -> 4449 | D60: 178 | E60: =CONCATENATE("CALCULO_EDIF!","C",B60,":","C",C60) -> CALCULO_EDIF!C4425:C4449 | H60: riego de imprimación | I60: 2 | L60: 1050 | M60: =IF(AND(ISBLANK(I60)*ISBLANK(K60)),"-",IF(AND(NOT(ISBLANK(I60))*NOT(ISBLANK(K60))),"Error",IF(ISBLANK(I60),K60,I60*L60))) -> 2100 | N60: material n15 | O60: =IF(N60="Otro",$A$1,VLOOKUP(N60, INDIRECT(A60),2,FALSE)) -> 0.75 | P60: 0.4 | R60: =IF(O60="Valor:",M60*P60,M60*O60) -> 1575 | S60: =M60-R60 -> 525
A61: CALCULO_EDIF!C4474:D179 | B61: 4450 | C61: 4474 | D61: 179 | E61: CALCULO_EDIF!C4450:C4474 | H61: riego de curado | I61: 3 | L61: 1010 | M61: =IF(AND(ISBLANK(I61)*ISBLANK(K61)),"-",IF(AND(NOT(ISBLANK(I61))*NOT(ISBLANK(K61))),"Error",IF(ISBLANK(I61),K61,I61*L61))) -> 3030 | N61: material n12 | O61: =IF(N61="Otro",$A$1,VLOOKUP(N61, INDIRECT(A61),2,FALSE)) -> 0.6 | P61: 0.4 | R61: =IF(O61="Valor:",M61*P61,M61*O61) -> 1818 | S61: =M61-R61 -> 1212
A62: CALCULO_EDIF!C4499:D180 | B62: 4475 | C62: 4499 | D62: 180 | E62: CALCULO_EDIF!C4475:C4499 | H62: riego de penetración | K62: 500 | L62: 1050 | M62: =IF(AND(ISBLANK(I62)*ISBLANK(K62)),"-",IF(AND(NOT(ISBLANK(I62))*NOT(ISBLANK(K62))),"Error",IF(ISBLANK(I62),K62,I62*L62))) -> 500 | N62: material n07 | O62: =IF(N62="Otro",$A$1,VLOOKUP(N62, INDIRECT(A62),2,FALSE)) -> 0.35 | P62: 0.4 | R62: =IF(O62="Valor:",M62*P62,M62*O62) -> 175 | S62: =M62-R62 -> 325
A64: CALCULO_EDIF!C4524:D181 | B64: =IF(D64=1,1,(D64-1)*25) -> 4500 | C64: =IF(D64=1,24,B64+24) -> 4524 | D64: 181 | E64: CALCULO_EDIF!C4500:C4524 | G64: TRATAMIENTOS | H64: tratamientos especiales | I64: 2 | L64: 1000 | M64: =IF(AND(ISBLANK(I64)*ISBLANK(K64)),"-",IF(AND(NOT(ISBLANK(I64))*NOT(ISBLANK(K64))),"Error",IF(ISBLANK(I64),K64,I64*L64))) -> 2000 | N64: material n05 | O64: =IF(N64="Otro",$A$1,VLOOKUP(N64, INDIRECT(A64),2,FALSE)) -> 0.25 | P64: 0.4 | R64: =IF(O64="Valor:",M64*P64,M64*O64) -> 500 | S64: =M64-R64 -> 1500 | U64: =SUM(R64:R64)/SUM(M64:M64) -> 0.25
A66: =CONCATENATE("CALCULO_EDIF!","C",C66,":","D",D66) -> CALCULO_EDIF!C4549:D182 | B66: =IF(D66=1,1,(D66-1)*25) -> 4525 | C66: =IF(D66=1,24,B66+24) -> 4549 | D66: 182 | E66: =CONCATENATE("CALCULO_EDIF!","C",B66,":","C",C66) -> CALCULO_EDIF!C4525:C4549 | G66: SEÑALIZACIÓN Y BALIZAMIENTO | H66: pantallas acusticas | I66: 10 | L66: 2100 | M66: =IF(AND(ISBLANK(I66)*ISBLANK(K66)),"-",IF(AND(NOT(ISBLANK(I66))*NOT(ISBLANK(K66))),"Error",IF(ISBLANK(I66),K66,I66*L66))) -> 21000 | N66: T SONIC- ANTONIO CASADO Y CIA, S.L. | O66: =IF(N66="Otro",$A$1,VLOOKUP(N66, INDIRECT(A66),2,FALSE)) -> 1 | P66: 0.4 | R66: =IF(O66="Valor:",M66*P66,M66*O66) -> 21000 | S66: =M66-R66 -> 0 | U66: =SUM(R66:R71)/SUM(M66:M71) -> 0.9927909493
A67: =CONCATENATE("CALCULO_EDIF!","C",C67,":","D",D67) -> CALCULO_EDIF!C4574:D183 | B67: =IF(D67=1,1,(D67-1)*25) -> 4550 | C67: =IF(D67=1,24,B67+24) -> 4574 | D67: 183 | E67: =CONCATENATE("CALCULO_EDIF!","C",B67,":","C",C67) -> CALCULO_EDIF!C4550:C4574 | H67: barandillas y barreras | K67: 45 | L67: 2100 | M67: 45 | N67: material n10 | O67: 0.5 | P67: 0.4 | R67: 22.5 | S67: 22.5
A68: CALCULO_EDIF!C4599:D184 | B68: 4575 | C68: 4599 | D68: 184 | E68: CALCULO_EDIF!C4575:C4599 | H68: Elementos de movilidad (plataformas y balizamiento) | K68: 50 | L68: 2100 | M68: 50 | N68: ZEBRA-ZICLA | O68: 1 | P68: 0.4 | R68: 50 | S68: 0
A69: CALCULO_EDIF!C4624:D185 | B69: 4600 | C69: 4624 | D69: 185 | E69: CALCULO_EDIF!C4600:C4624 | H69: señales | K69: 65 | L69: 2600 | M69: 65 | N69: material n03 | O69: 0.15 | P69: 0.4 | R69: 9.75 | S69: 55.25
A70: CALCULO_EDIF!C4649:D186 | B70: 4625 | C70: 4649 | D70: 186 | E70: CALCULO_EDIF!C4625:C4649 | H70: espejos | K70: 78 | L70: 2200 | M70: 78 | N70: material n05 | O70: 0.25 | P70: 0.4 | R70: 19.5 | S70: 58.5
A71: CALCULO_EDIF!C4674:D187 | B71: 4650 | C71: 4674 | D71: 187 | E71: CALCULO_EDIF!C4650:C4674 | H71: bolardos y pilonas | K71: 20 | L71: 1300 | M71: 20 | N71: material n03 | O71: 0.15 | P71: 0.4 | R71: 3 | S71: 17
A73: =CONCATENATE("CALCULO_EDIF!","C",C73,":","D",D73) -> CALCULO_EDIF!C4699:D188 | B73: =IF(D73=1,1,(D73-1)*25) -> 4675 | C73: =IF(D73=1,24,B73+24) -> 4699 | D73: 188 | E73: =CONCATENATE("CALCULO_EDIF!","C",B73,":","C",C73) -> CALCULO_EDIF!C4675:C4699 | G73: MOBILIARIO URBANO | H73: bancos y mesas | I73: 10 | L73: 1200 | M73: 500 | N73: ROMANTICO - ZICLA | O73: =IF(N73="Otro",$A$1,VLOOKUP(N73, INDIRECT(A73),2,FALSE)) -> 1 | P73: 0.4 | R73: =IF(O73="Valor:",M73*P73,M73*O73) -> 500 | S73: =M73-R73 -> 0 | U73: =SUM(R73:R83)/SUM(M73:M83) -> 0.9198603902
A74: =CONCATENATE("CALCULO_EDIF!","C",C74,":","D",D74) -> CALCULO_EDIF!C4724:D189 | B74: =IF(D74=1,1,(D74-1)*25) -> 4700 | C74: =IF(D74=1,24,B74+24) -> 4724 | D74: 189 | E74: =CONCATENATE("CALCULO_EDIF!","C",B74,":","C",C74) -> CALCULO_EDIF!C4700:C4724 | H74: fuentes | K74: 45 | L74: 2100 | M74: =IF(AND(ISBLANK(I74)*ISBLANK(K74)),"-",IF(AND(NOT(ISBLANK(I74))*NOT(ISBLANK(K74))),"Error",IF(ISBLANK(I74),K74,I74*L74))) -> 45 | N74: material n13 | O74: 0.65 | P74: 0.4 | R74: 29.25 | S74: 15.75
A75: CALCULO_EDIF!C4749:D190 | B75: 4725 | C75: 4749 | D75: 190 | E75: CALCULO_EDIF!C4725:C4749 | H75: papeleras | K75: 50 | L75: 1200 | M75: 50 | N75: SAU- Recollida i Reciclatge SL | O75: 1 | P75: 0.4 | R75: 50 | S75: 0
A76: CALCULO_EDIF!C4774:D191 | B76: 4750 | C76: 4774 | D76: 191 | E76: CALCULO_EDIF!C4750:C4774 | H76: jardineras | K76: 65 | L76: 2100 | M76: 65 | N76: GUILLERIES- Recollida i Reciclatge SL | O76: 1 | P76: 0.4 | R76: 65 | S76: 0
A77: CALCULO_EDIF!C4799:D192 | B77: 4775 | C77: 4799 | D77: 192 | E77: CALCULO_EDIF!C4775:C4799 | H77: elementos de jardineria | K77: 20 | L77: 2100 | M77: 20 | N77: Árido decorativo cerámico-ZICLA | O77: 1 | P77: 0.4 | R77: 20 | S77: 0
A78: CALCULO_EDIF!C4824:D193 | B78: 4800 | C78: 4824 | D78: 193 | E78: CALCULO_EDIF!C4800:C4824 | H78: paseos y pasarelas | I78: 25 | L78: 2400 | M78: 60000 | N78: Pasarela fija/enrollable-ZICLA | O78: 1 | P78: 0.4 | R78: 60000 | S78: 0
A79: CALCULO_EDIF!C4849:D194 | B79: 4825 | C79: 4849 | D79: 194 | E79: CALCULO_EDIF!C4825:C4849 | H79: juegos infantiles | K79: 36 | L79: 2300 | M79: 36 | N79: Otro | O79: Valor: | P79: 0.23 | R79: 8.28 | S79: 27.72
A80: CALCULO_EDIF!C4874:D195 | B80: 4850 | C80: 4874 | D80: 195 | E80: CALCULO_EDIF!C4850:C4874 | H80: alcorques | K80: 78 | L80: 2200 | M80: 78 | N80: material n07 | O80: 0.35 | P80: 0.4 | R80: 27.3 | S80: 50.7
A81: CALCULO_EDIF!C4899:D196 | B81: 4875 | C81: 4899 | D81: 196 | E81: CALCULO_EDIF!C4875:C4899 | H81: protecciones | I81: 10 | L81: 1400 | M81: 14000 | N81: material n10 | O81: 0.5 | P81: 0.4 | R81: 7000 | S81: 7000
A82: CALCULO_EDIF!C4924:D197 | B82: 4900 | C82: 4924 | D82: 197 | E82: CALCULO_EDIF!C4900:C4924 | H82: vallas | I82: 10 | L82: 1400 | M82: =IF(AND(ISBLANK(I82)*ISBLANK(K82)),"-",IF(AND(NOT(ISBLANK(I82))*NOT(ISBLANK(K82))),"Error",IF(ISBLANK(I82),K82,I82*L82))) -> 14000 | N82: Huesca-ZICLA | O82: =IF(N82="Otro",$A$1,VLOOKUP(N82, INDIRECT(A82),2,FALSE)) -> 1 | P82: 0.4 | R82: =IF(O82="Valor:",M82*P82,M82*O82) -> 14000 | S82: =M82-R82 -> 0
A83: CALCULO_EDIF!C4949:D198 | B83: 4925 | C83: 4949 | D83: 198 | E83: CALCULO_EDIF!C4925:C4949 | H83: aparcabicicletas | K83: 25 | L83: 2400 | M83: 25 | N83: APARCABICIS MADERA- Recollida i Reciclatge SL | O83: 0.05 | P83: 0.4 | R83: 1.25 | S83: 23.75
A85: =CONCATENATE("CALCULO_EDIF!","C",C85,":","D",D85) -> CALCULO_EDIF!C4974:D199 | B85: =IF(D85=1,1,(D85-1)*25) -> 4950 | C85: =IF(D85=1,24,B85+24) -> 4974 | D85: 199 | E85: =CONCATENATE("CALCULO_EDIF!","C",B85,":","C",C85) -> CALCULO_EDIF!C4950:C4974 | G85: INSTALACIONES | H85: red abastecimiento | I85: 10 | L85: 2100 | M85: =IF(AND(ISBLANK(I85)*ISBLANK(K85)),"-",IF(AND(NOT(ISBLANK(I85))*NOT(ISBLANK(K85))),"Error",IF(ISBLANK(I85),K85,I85*L85))) -> 21000 | N85: PP-R PIPES- AQUATHERM GMBH | O85: =IF(N85="Otro",$A$1,VLOOKUP(N85, INDIRECT(A85),2,FALSE)) -> 0.05 | P85: 0.4 | R85: =IF(O85="Valor:",M85*P85,M85*O85) -> 1050 | S85: =M85-R85 -> 19950 | U85: =SUM(R85:R89)/SUM(M85:M89) -> 0.05234720784
A86: CALCULO_EDIF!C4999:D200 | B86: 4975 | C86: 4999 | D86: 200 | E86: CALCULO_EDIF!C4975:C4999 | H86: red saneamiento | K86: 45 | L86: 2100 | M86: 45 | N86: material n10 | O86: 0.5 | P86: 0.4 | R86: 22.5 | S86: 22.5
A87: CALCULO_EDIF!C5024:D201 | B87: 5000 | C87: 5024 | D87: 201 | E87: CALCULO_EDIF!C5000:C5024 | H87: red electricidad | K87: 50 | L87: 1800 | M87: 50 | N87: material n04 | O87: 0.2 | P87: 0.4 | R87: 10 | S87: 40
A88: CALCULO_EDIF!C5049:D202 | B88: 5025 | C88: 5049 | D88: 202 | E88: CALCULO_EDIF!C5025:C5049 | H88: red gas | K88: 65 | L88: 2600 | M88: 65 | N88: material n03 | O88: 0.15 | P88: 0.4 | R88: 9.75 | S88: 55.25
A89: CALCULO_EDIF!C5074:D203 | B89: 5050 | C89: 5074 | D89: 203 | E89: CALCULO_EDIF!C5050:C5074 | H89: otros | K89: 78 | L89: 2200 | M89: 78 | N89: material n05 | O89: 0.25 | P89: 0.4 | R89: 19.5 | S89: 58.5
R90: =SUM(R25:R89) -> 209958.45 | S90: =SUM(S25:S89) -> 207833.55 | U90: =R90/(R90+S90) -> 0.5025430118

Sheet resultados
B5: EDIFICACIÓN | D5: Material Reciclado [Kg] | E5: Material no Reciclado [Kg] | G5: Material Reciclado [%]
B6: ACONDICIONAMIENTO Y CIMENTACIÓN | D6: ='entrada datos Edificación'!R10 -> 39778.4 | E6: ='entrada datos Edificación'!S10 -> 129551.6 | G6: =D6/(D6+E6) -> 0.2349164354
B7: ESTRUCTURA | D7: ='entrada datos Edificación'!R25 -> 109291.0893 | E7: ='entrada datos Edificación'!S25 -> 24886.9107 | G7: =D7/(D7+E7) -> 0.8145231655
B8: FACHADAS | D8: ='entrada datos Edificación'!R57 -> 52963.75 | E8: ='entrada datos Edificación'!S57 -> 66340.25 | G8: 0.443939432
B9: CUBIERTAS | D9: ='entrada datos Edificación'!R77 -> 12896.9 | E9: ='entrada datos Edificación'!S77 -> 8405.1 | G9: 0.6054314149
B10: AISLANTES E IMPERMEABILIZANTES | D10: ='entrada datos Edificación'!R93 -> 674.09 | E10: ='entrada datos Edificación'!S93 -> 1521.91 | G10: 0.3069626594
B11: PARTICIONES INTERIORES | D11: ='entrada datos Edificación'!R110 -> 32435.79 | E11: ='entrada datos Edificación'!S110 -> 114719.21 | G11: 0.2204192178
B12: REVESTIMIENTOS | D12: ='entrada datos Edificación'!R139 -> 71038.19 | E12: ='entrada datos Edificación'!S139 -> 206249.81 | G12: 0.2561891968
B13: INSTALACIONES | D13: ='entrada datos Edificación'!R172 -> 8439.625 | E13: ='entrada datos Edificación'!S172 -> 75960.375 | G13: 0.09999555687
B15: TOTAL EDIFICACIÓN | D15: =SUM(D6:D13) -> 327517.8343 | E15: =SUM(E6:E13) -> 627635.1657 | G15: =D15/(D15+E15) -> 0.3428956767
B17: Nº DE PARTIDAS DEL PROYECTO QUE DISPONEN DE MATERIAL RECICLADO [UD] | G17: =COUNTIF('entrada datos Edificación'!R3:R9,">0")+COUNTIF('entrada datos Edificación'!R13:R24,">0")+COUNTIF('entrada datos Edificación'!R28:R56,">0")+COUNTIF('entrada datos Edificación'!R60:R76,">0")+COUNTIF('entrada datos Edificación'!R80:R92,">0")+COUNTIF('entrada datos Edificación'!R96:R109,">0")+COUNTIF('entrada datos Edificación'!R113:R138,">0")+COUNTIF('entrada datos Edificación'!R142:R171,">0") -> 131
B18: Nº DE PARTIDAS CONTEMPLADAS EN EL PROYECTO [UD] | G18: 134 | H18: <--Cambiar a mano
E19: TOTAL EDIFICACIÓN | G19: =G17/G18 -> 0.9776119403
B21: URBANIZACIÓN | D21: Material Reciclado [Kg] | E21: Material no Reciclado [Kg] | G21: Material Reciclado [%]
B22: DRENAJE | D22: ='entrada datos Urbanizacion'!R3 -> 1350 | E22: ='entrada datos Urbanizacion'!S3 -> 7650 | G22: =D22/(D22+E22) -> 0.15
B23: MOVIMIENTO DE TIERRAS | D23: =SUM('entrada datos Urbanizacion'!R5:R8) -> 490.3 | E23: =SUM('entrada datos Urbanizacion'!S5:S8) -> 4359.7 | G23: =D23/(D23+E23) -> 0.1010927835
B24: SUBBASES | D24: =SUM('entrada datos Urbanizacion'!R10:R14) -> 45536.6 | E24: =SUM('entrada datos Urbanizacion'!S10:S14) -> 135115.4 | G24: 0.2520680646
B25: BASES | D25: =SUM('entrada datos Urbanizacion'!R16:R19) -> 57066.95 | E25: =SUM('entrada datos Urbanizacion'!S16:S19) -> 257046.05 | G25: 0.1816764986
B26: PAVIMENTO | D26: ='entrada datos Urbanizacion'!R21 -> 30800 | E26: ='entrada datos Urbanizacion'!S21 -> 92400 | G26: 0.25
B27: APLICACIONES NO LIGADAS | D27: =SUM(D22:D26) -> 135243.85 | E27: =SUM(E22:E26) -> 496571.15 | G27: =D27/(D27+E27) -> 0.2140560924
B29: DRENAJE | D29: =SUM('entrada datos Urbanizacion'!R25:R27) -> 4873.5 | E29: =SUM('entrada datos Urbanizacion'!S25:S27) -> 9061.5 | G29: =D29/(D29+E29) -> 0.3497308934
B30: BASES | D30: =SUM('entrada datos Urbanizacion'!R29:R33) -> 5522.75 | E30: =SUM('entrada datos Urbanizacion'!S29:S33) -> 22689.25 | G30: =D30/(D30+E30) -> 0.1957588969
B31: HORMIGONES Y MORTEROS | D31: =SUM('entrada datos Urbanizacion'!R35:R37) -> 3241 | E31: =SUM('entrada datos Urbanizacion'!S35:S37) -> 13564 | G31: 0.1928592681
B32: PAVIMENTO | D32: =SUM('entrada datos Urbanizacion'!R39:R57) -> 87758.12 | E32: =SUM('entrada datos Urbanizacion'!S39:S57) -> 131086.88 | G32: 0.401005826
B33: RIEGO BITUMINOSO | D33: =SUM('entrada datos Urbanizacion'!R59:R62) -> 4145.5 | E33: =SUM('entrada datos Urbanizacion'!S59:S62) -> 2534.5 | G33: 0.6205838323
B34: TRATAMIENTOS | D34: =SUM('entrada datos Urbanizacion'!R64) -> 500 | E34: =SUM('entrada datos Urbanizacion'!S64) -> 1500 | G34: 0.25
B35: SEÑALIZACIÓN Y BALIZAMIENTO | D35: =SUM('entrada datos Urbanizacion'!R66:R71) -> 21104.75 | E35: =SUM('entrada datos Urbanizacion'!S66:S71) -> 153.25 | G35: 0.9927909493
B36: MOBILIARIO URBANO | D36: =SUM('entrada datos Urbanizacion'!R73:R83) -> 81701.08 | E36: =SUM('entrada datos Urbanizacion'!S73:S83) -> 7117.92 | G36: 0.9198603902
B37: INSTALACIONES | D37: =SUM('entrada datos Urbanizacion'!R85:R89) -> 1111.75 | E37: =SUM('entrada datos Urbanizacion'!S85:S89) -> 20126.25 | G37: 0.05234720784
B38: APLICACIONES LIGADAS Y OTRAS | D38: =SUM(D29:D37) -> 209958.45 | E38: =SUM(E29:E37) -> 207833.55 | G38: =D38/(D38+E38) -> 0.5025430118
B40: TOTAL URBANIZACIÓN | D40: =D27+D38 -> 345202.3 | E40: =E27+E38 -> 704404.7 | G40: =D40/(D40+E40) -> 0.328887193
B42: Nº DE PARTIDAS DEL PROYECTO QUE DISPONEN DE MATERIAL RECICLADO [UD] | G42: =COUNTIF('entrada datos Urbanizacion'!R3:R21,">0")+COUNTIF('entrada datos Urbanizacion'!R25:R89,">0") -> 72
B43: Nº DE PARTIDAS CONTEMPLADAS EN EL PROYECTO [UD] | G43: 76 | H43: <--Cambiar a mano
E44: TOTAL URBANIZACIÓN | G44: =G42/G43 -> 0.9473684211

Sheet CALCULO_EDIF (hidden)
A1: 1 | B1: ="Lista " &A1& " "& LOOKUP(A1,'entrada datos Edificación'!$D$3:$D$138,'entrada datos Edificación'!$H$3:$H$138) -> Lista 1 hormigón zapatas y pilotes | C1: Sin materiall reciclado | D1: 0
C2: Cemento CEM I-Cementos Lemona, S.A. | D2: 0.03
C3: Cemento CEM I-Cementos Molins Industrial, S.A. | D3: 0.03
C4: Cemento CEM I-Cementos Portland Valderrivas, S.A. | D4: 0.03
C5: Cemento CEM I- Cementos Tudela Veguín, S.A. | D5: 0.03
C6: Cemento CEM I-CEMEX España Operaciones, S.L.U. | D6: 0.03
C7: Cemento CEM I-Holcim España, S.A. | D7: 0.03
C8: Cemento CEM I-Grupo Votorantim. | D8: 0.03
C9: Cemento CEM I-Lafarge Cementos, S.A.U. | D9: 0.03
C10: Cemento CEM I-Sociedad Financiera y Minera, S.A | D10: 0.03
C11: Cemento CEM II-Cementos Balboa, S.A. | D11: 0.03
C12: Cemento CEM II-Cementos Lemona, S.A. | D12: 0.03
C13: Cemento CEM II-Cementos Molins Industrial, S.A. | D13: 0.03
C14: Cemento CEM II-Cementos Portland Valderrivas, S.A. | D14: 0.03
C15: Cemento CEM II-Cementos Tudela Veguín, S.A. | D15: 0.03
C16: Cemento CEM II-CEMEX España Operaciones, S.L.U. | D16: 0.03
C17: Cemento CEM II-Holcim España, S.A. | D17: 0.03
C18: Cemento CEM II-Grupo Votorantim | D18: 0.03
C19: Cemento CEM II-Lafarge Cementos, S.A. | D19: 0.03
C20: Cemento CEM II-Sociedad Financiera y Minera, S.A. | D20: 0.03
C21: material n20 | D21: 1
C22: Otro | D22: -
A25: 2 | B25: ="Lista " &A25& " "& LOOKUP(A25,'entrada datos Edificación'!$D$3:$D$172,'entrada datos Edificación'!$H$3:$H$172) -> Lista 2 hormigón losas y soleras | C25: Sin materiall reciclado | D25: 0
C26: Cemento CEM I-Cementos Lemona, S.A. | D26: 0.03
C27: Cemento CEM I-Cementos Molins Industrial, S.A. | D27: 0.03
C28: Cemento CEM I-Cementos Portland Valderrivas, S.A. | D28: 0.03
C29: Cemento CEM I- Cementos Tudela Veguín, S.A. | D29: 0.03
C30: Cemento CEM I-CEMEX España Operaciones, S.L.U. | D30: 0.03
C31: Cemento CEM I-Holcim España, S.A. | D31: 0.03
C32: Cemento CEM I-Grupo Votorantim. | D32: 0.03
C33: Cemento CEM I-Lafarge Cementos, S.A.U. | D33: 0.03
C34: Cemento CEM I-Sociedad Financiera y Minera, S.A | D34: 0.03
C35: Cemento CEM II-Cementos Balboa, S.A. | D35: 0.03
C36: Cemento CEM II-Cementos Lemona, S.A. | D36: 0.03
C37: Cemento CEM II-Cementos Molins Industrial, S.A. | D37: 0.03
C38: Cemento CEM II-Cementos Portland Valderrivas, S.A. | D38: 0.03
C39: Cemento CEM II-Cementos Tudela Veguín, S.A. | D39: 0.03
C40: Cemento CEM II-CEMEX España Operaciones, S.L.U. | D40: 0.03
C41: Cemento CEM II-Holcim España, S.A. | D41: 0.03
C42: Cemento CEM II-Grupo Votorantim | D42: 0.03
C43: Cemento CEM II-Lafarge Cementos, S.A. | D43: 0.03
C44: Cemento CEM II-Sociedad Financiera y Minera, S.A. | D44: 0.03
C45: material n20 | D45: 1
C46: Otro | D46: -
A50: 3 | B50: ="Lista " &A50& " "& LOOKUP(A50,'entrada datos Edificación'!$D$3:$D$172,'entrada datos Edificación'!$H$3:$H$172) -> Lista 3 acero armaduras | C50: Sin materiall reciclado | D50: 0
C51: Alambrón-Arcelor Mittal | D51: 0.857
C52: Barras Corrugadas- Arcelor Mittal | D52: 0.8849
C53: material n03 | D53: 0.15
C54: material n04 | D54: 0.2
C55: material n05 | D55: 0.25
C56: material n06 | D56: 0.3
C57: material n07 | D57: 0.35
C58: material n08 | D58: 0.4
C59: material n09 | D59: 0.45
C60: material n10 | D60: 0.5
C61: material n11 | D61: 0.55
C62: material n12 | D62: 0.6
C63: material n13 | D63: 0.65
C64: material n14 | D64: 0.7
C65: material n15 | D65: 0.75
C66: material n16 | D66: 0.8
C67: material n17 | D67: 0.85
C68: material n18 | D68: 0.9
C69: material n19 | D69: 0.95
C70: material n20 | D70: 1
C71: Otro | D71: -
A75: 4 | B75: ="Lista " &A75& " "& LOOKUP(A75,'entrada datos Edificación'!$D$3:$D$172,'entrada datos Edificación'!$H$3:$H$172) -> Lista 4 material de explanadas, terraplenes o afines | C75: Sin materiall reciclado | D75: 0
C76: material n01 | D76: 0.05
C77: material n02 | D77: 0.1
C78: material n03 | D78: 0.15
C79: material n04 | D79: 0.2
C80: material n05 | D80: 0.25
C81: material n06 | D81: 0.3
C82: material n07 | D82: 0.35
C83: material n08 | D83: 0.4
C84: material n09 | D84: 0.45
C85: material n10 | D85: 0.5
C86: material n11 | D86: 0.55
C87: material n12 | D87: 0.6
C88: material n13 | D88: 0.65
C89: material n14 | D89: 0.7
C90: material n15 | D90: 0.75
C91: material n16 | D91: 0.8
C92: material n17 | D92: 0.85
C93: material n18 | D93: 0.9
C94: material n19 | D94: 0.95
C95: material n20 | D95: 1
C96: Otro | D96: -
A100: 5 | B100: ="Lista " &A100& " "& LOOKUP(A100,'entrada datos Edificación'!$D$3:$D$172,'entrada datos Edificación'!$H$3:$H$172) -> Lista 5 rellenos | C100: Sin materiall reciclado | D100: 0
C101: material n01 | D101: 0.05
C102: material n02 | D102: 0.1
C103: material n03 | D103: 0.15
C104: material n04 | D104: 0.2
C105: material n05 | D105: 0.25
C106: material n06 | D106: 0.3
C107: material n07 | D107: 0.35
C108: material n08 | D108: 0.4
C109: material n09 | D109: 0.45
C110: material n10 | D110: 0.5
C111: material n11 | D111: 0.55
C112: material n12 | D112: 0.6
C113: material n13 | D113: 0.65
C114: material n14 | D114: 0.7
C115: material n15 | D115: 0.75
C116: material n16 | D116: 0.8
C117: material n17 | D117: 0.85
C118: material n18 | D118: 0.9
C119: material n19 | D119: 0.95
C120: material n20 | D120: 1
C121: Otro | D121: -
A125: 6 | B125: ="Lista " &A125& " "& LOOKUP(A125,'entrada datos Edificación'!$D$3:$D$172,'entrada datos Edificación'!$H$3:$H$172) -> Lista 6 zahorras | C125: Sin materiall reciclado | D125: 0
C126: material n01 | D126: 0.05
C127: material n02 | D127: 0.1
C128: material n03 | D128: 0.15
C129: material n04 | D129: 0.2
C130: material n05 | D130: 0.25
C131: material n06 | D131: 0.3
C132: material n07 | D132: 0.35
C133: material n08 | D133: 0.4
C134: material n09 | D134: 0.45
C135: material n10 | D135: 0.5
C136: material n11 | D136: 0.55
C137: material n12 | D137: 0.6
C138: material n13 | D138: 0.65
C139: material n14 | D139: 0.7
C140: material n15 | D140: 0.75
C141: material n16 | D141: 0.8
C142: material n17 | D142: 0.85
C143: material n18 | D143: 0.9
C144: material n19 | D144: 0.95
C145: material n20 | D145: 1
C146: Otro | D146: -
A150: 7 | B150: ="Lista " &A150& " "& LOOKUP(A150,'entrada datos Edificación'!$D$3:$D$172,'entrada datos Edificación'!$H$3:$H$172) -> Lista 7 pilares, vigas y viguetas | C150: Sin materiall reciclado | D150: 0
C151: Acero estructural-CELSA Group | D151: 1
C152: Acero inoxidable laminado en caliente-OUTOKUMPU | D152: 0.82
C153: Productos largos de acero inox-OUTOKUMPU | D153: 0.92
C154: Barras y perfiles-ArcelorMittal | D154: 0.8898
C155: material n05 | D155: 0.25
C156: material n06 | D156: 0.3
C157: material n07 | D157: 0.35
C158: material n08 | D158: 0.4
C159: material n09 | D159: 0.45
C160: material n10 | D160: 0.5
C161: material n11 | D161: 0.55
C162: material n12 | D162: 0.6
C163: material n13 | D163: 0.65
C164: material n14 | D164: 0.7
C165: material n15 | D165: 0.75
C166: material n16 | D166: 0.8
C167: material n17 | D167: 0.85
C168: material n18 | D168: 0.9
C169: material n19 | D169: 0.95
C170: material n20 | D170: 1
C171: Otro | D171: -
A175: 8 | B175: ="Lista " &A175& " "& LOOKUP(A175,'entrada datos Edificación'!$D$3:$D$172,'entrada datos Edificación'!$H$3:$H$172) -> Lista 8 chapa metálica | C175: Sin materiall reciclado | D175: 0
C176: material n01 | D176: 0.05
C177: material n02 | D177: 0.1
C178: material n03 | D178: 0.15
C179: material n04 | D179: 0.2
C180: material n05 | D180: 0.25
C181: material n06 | D181: 0.3
C182: material n07 | D182: 0.35
C183: material n08 | D183: 0.4
C184: material n09 | D184: 0.45
C185: material n10 | D185: 0.5
C186: material n11 | D186: 0.55
C187: material n12 | D187: 0.6
C188: material n13 | D188: 0.65
C189: material n14 | D189: 0.7
C190: material n15 | D190: 0.75
C191: material n16 | D191: 0.8
C192: material n17 | D192: 0.85
C193: material n18 | D193: 0.9
C194: material n19 | D194: 0.95
C195: material n20 | D195: 1
C196: Otro | D196: -
A200: 9 | B200: ="Lista " &A200& " "& LOOKUP(A200,'entrada datos Edificación'!$D$3:$D$172,'entrada datos Edificación'!$H$3:$H$172) -> Lista 9 hormigón vigas y pilares | C200: Sin materiall reciclado | D200: 0
C201: material n01 | D201: 0.05
C202: material n02 | D202: 0.1
C203: material n03 | D203: 0.15
C204: material n04 | D204: 0.2
C205: material n05 | D205: 0.25
C206: material n06 | D206: 0.3
C207: material n07 | D207: 0.35
C208: material n08 | D208: 0.4
C209: material n09 | D209: 0.45
C210: material n10 | D210: 0.5
C211: material n11 | D211: 0.55
C212: material n12 | D212: 0.6
C213: material n13 | D213: 0.65
C214: material n14 | D214: 0.7
C215: material n15 | D215: 0.75
C216: material n16 | D216: 0.8
C217: material n17 | D217: 0.85
C218: material n18 | D218: 0.9
C219: material n19 | D219: 0.95
C220: material n20 | D220: 1
C221: Otro | D221: -
A225: 10 | B225: ="Lista " &A225& " "& LOOKUP(A225,'entrada datos Edificación'!$D$3:$D$172,'entrada datos Edificación'!$H$3:$H$172) -> Lista 10 hormigón losas y forjados | C225: Sin materiall reciclado | D225: 0
C226: material n01 | D226: 0.05
... 4266 more rows
